Workbook

Sheet Calculator
F1: List_Box_2 | G1: List_Box_3
B2: Index 2 | C2: Index 3 | D2: Index 4 | F2: CS2-A 1500 | G2: 1500
B3: 1 | C3: 1 | D3: 1 | F3: CS2-A 3000
F4: CS2-A 5000
A5: Skriv i dessa manuellt för List_box_1 | D5: Index 1 | F5: CS2-A 7500 | U5: Select CS Spring
B6: Adjustable | D6: 1
B7: Non Adjustable | D7: Cell-länk
B11: Tillhör Listbox_12
B12: 1
A14: Skriv in dessa manuellt
B15: Power Unit (HCP)
B16: Power Unit with separate accumulator (HCP-S) | D16: 1 | U16: Min. Charge Pressure | W16: =MinGasPressure -> 25 | X16: bar
U17: Max. Charge Pressure | W17: =MaxGasPressure -> 150 | X17: bar
A18: HCPType | B18: =INDEX(B15:B16,D16) -> Power Unit (HCP) | U18: Min. Stroke Length | W18: =MinStrokelength -> 5 | X18: mm
U19: Max. Stroke Length | W19: =MaxStrokeLength -> 17 | X19: mm
U21: Charge Pressure | W21: 150 | X21: bar
A22: Vald KF Skrivs ut på rad 25
B24: Model size | D24: Stroke (mm) | E24: Return Speed | F24: Piston Rod Diameter | G24: Min Gas Pressure (bar) | I24: Min Stroke Length | J24: Max Stroke Length | K24: L min | L24: Fi | M24: Fs | N24: Tube Diameter | O24: Piston Area (dm2) | P24: Description
A25: Adjustable | B25: CS2-A 1500 | C25: 1500 | D25: 10 | E25: 0.2 | F25: 36 | G25: 25 | H25: 150 | I25: 5 | J25: 17 | K25: 142 | L25: 15000 | M25: 22000 | N25: 80 | O25: - | P25: CS2-A 1500-10
U40: Heat Calculation
U42: Strokes per minute | W42: 10 | X42: spm
M43: KF Spring locking time | N43: 1 | O43: s | U43: Surrounding Temperature (Catalog values based on 20°C) | W43: 20 | X43: °C
U45: =Heat_Data -> Heat Factor | V45: 50 | W45: mm/min | X45: 0 | Y45: 0
U46: Total Power | V46: 0.01813183683 | W46: kW | X46: 0 | Y46: 0
U47: 0 | V47: 0 | W47: 0 | X47: 0 | Y47: 0
U48: 0 | V48: Max Heat Factor mm/min | W48: Max Power kW | X48: Utilisation | Y48: 0 | Z48: ="Cooler Capacity for "&User_Surrounding_Temperature&"°C" -> Cooler Capacity for 20°C
H49: Strokes List | I49: Used Stroke Length | M49: 1 | O49: ListBox_Cooling | U49: No cooling | V49: 451.47375 | W49: 0.1637209673 | X49: 0.1107484101 | Y49: OK | Z49: 10 kW Liquid Cooler | AB49: =Liquid_Cooler_10kW_Capacity -> 10.71428571 | AC49: kW
M50: Quantity Listbox | P50: Cooling Altenatives | Q50: Antal Rader | U50: Liquid cooling | V50: 2295.918367 | W50: 0.8325843441 | X50: 0.02177777778 | Y50: OK | Z50: 25kW Liquid Cooler | AB50: =Liquid_Cooler_25kW_Capacity -> 26.78571429 | AC50: kW
H51: 10 | I51: =MinStrokelength -> 5 | J51: =MATCH(MinStrokelength,I51:I68) -> 1 | K51: 1 | M51: 1 | O51: =Heat_Factor!T43 -> No cooling | P51: =SUM(Heat_Factor!I16:I18) -> 3 | Q51: =IF(Cooling_Ant=0,1,Cooling_Ant) -> 3 | U51: Nitro Cooler | V51: 3673.469388 | W51: 1.332134951 | X51: 0.01361111111 | Y51: OK | Z51: Nitro Cooler | AB51: =Nitro_Cooler_Capacity -> 1.607142857 | AC51: kW
H52: 20 | I52: =I51+1 -> 6 | J52: =MATCH(MaxStrokeLength,I51:I68) -> 13 | M52: 2 | O52: =Heat_Factor!T44 -> Liquid cooling
H53: 30 | I53: =I52+1 -> 7 | M53: 3 | O53: =Heat_Factor!T45 -> Nitro Cooler | U53: External Cooling Need | V53: =IF(V46-W49<0,0,ROUND(V46-W49,2)) -> 0 | W53: kW
H54: 40 | I54: 8 | M54: 4 | U54: Min External Cooling per spring | V54: =V53/User_Number_of_Springs -> 0 | W54: kW
H55: 50 | I55: 9 | K55: =COUNT(Used_Stroke_List) -> 13 | M55: 5
H56: 60 | I56: 10 | K56: =IF(K51>K55,K55,K51) -> 1 | M56: 6
H57: 70 | I57: 11 | K57: User_Used_Strokelength | M57: 7 | U57: Select Cooling Alternative:
H58: 80 | I58: 12 | K58: =INDEX(Used_Stroke_List,K56) -> 5 | M58: 8 | V58: =Cooler_Message -> 
H59: 90 | I59: 13 | K59: =User_Used_Stroke_Length-Stroke -> -5 | M59: 9
H60: 100 | I60: 14 | M60: 10
H61: 110 | I61: 15 | M61: 11
H62: 120 | I62: 16 | M62: 12 | U62: Note:
H63: 130 | I63: 17 | M63: 13 | U63: For some applications, the need for cooling can be eliminated
H64: 140 | I64: 18 | M64: 14 | U64: by considering one of the following:
H65: 150 | I65: 19 | K65: =Cooling_Needed/User_Number_of_Springs ->  | M65: 15 | U65: Add more CS2 springs
H66: 160 | I66: =I65+1 -> 20 | M66: 16 | Q66: Return Speed | U66: Use larger CS2 springs
I67: 21 | Q67: =IF(Cooler="-NC",E25*0.55,E25) -> 0.2
I68: 22 | K68: Adjusted stroke | U68: Important! When using the Nitro Cooler, the return stroke
K69: =User_Used_Stroke_Length -> 5 | U69: speed of the piston rod decreases by approximately 40%
K70: =IF(A25="Adjustable",K69,"") -> 5
K71: =TEXT(K70,"000") -> 005
K72: =IF(A25="Adjustable","-","") -> -
U73: CS Spring Motion
U75: Cycle Time | V75: =60/User_Strokes_per_Minute -> 6 | W75: s
U76: Return Time | V76: =User_Used_Stroke_Length/(Return_Speed*1000) -> 0.025 | W76: s
U77: Return Speed | V77: =Return_Speed -> 0.2 | W77: m/s
U80: Selection Summary
U82: Gas Spring | V82: Order No. | X82: Quantity
U83: =ModelSize -> CS2-A 1500 | V83: =Description&K72&K71&Heat_Factor!S21 -> CS2-A 1500-10-005 | X83: =User_Number_of_Springs -> 1
U85: Cooler | V85: Order No. | X85: Quantity
U86: =Cooler_Selection -> No Cooler | V86: =Cooler_OrderNo ->  | X86: =Cooler_Quantity -> 
U89: IMPORTANT:
X99: Please send feeback and comments to: | AA99: Orders@hysonsolutions.com

Sheet Produkter (hidden)
B1: Model size | D1: Stroke (mm) | E1: Return Speed | F1: Piston Rod Diameter | G1: Min Gas Pressure (bar) | H1: Max Gas Pressure (bar) | I1: Min Stroke Length | J1: Max Stroke Length | K1: L min | L1: Fi | M1: Fs | N1: Tube_Diameter | O1: Piston Area (dm2) | P1: Description
A2: Adjustable | B2: CS2-A 1500 | C2: 1500 | D2: 10 | E2: 0.2 | F2: 36 | G2: 25 | H2: 150 | I2: 5 | J2: 17 | K2: 142 | L2: 15000 | M2: 22000 | N2: 80 | O2: - | P2: CS2-A 1500-10
A3: Adjustable | B3: CS2-A 1500 | C3: 1500 | D3: 20 | E3: 0.2 | F3: 36 | G3: 25 | H3: 150 | I3: 12 | J3: 27 | K3: 152 | L3: 15000 | M3: 22000 | N3: 80 | P3: CS2-A 1500-20
A4: Adjustable | B4: CS2-A 1500 | C4: 1500 | D4: 30 | E4: 0.2 | F4: 36 | G4: 25 | H4: 150 | I4: 22 | J4: 37 | K4: 162 | L4: 15000 | M4: 22000 | N4: 80 | P4: CS2-A 1500-30
A5: Adjustable | B5: CS2-A 1500 | C5: 1500 | D5: 40 | E5: 0.2 | F5: 36 | G5: 25 | H5: 150 | I5: 32 | J5: 47 | K5: 172 | L5: 15000 | M5: 22000 | N5: 80 | P5: CS2-A 1500-40
A6: Adjustable | B6: CS2-A 1500 | C6: 1500 | D6: 50 | E6: 0.2 | F6: 36 | G6: 25 | H6: 150 | I6: 42 | J6: 57 | K6: 182 | L6: 15000 | M6: 22000 | N6: 80 | P6: CS2-A 1500-50
A7: Adjustable | B7: CS2-A 1500 | C7: 1500 | D7: 60 | E7: 0.2 | F7: 36 | G7: 25 | H7: 150 | I7: 52 | J7: 67 | K7: 192 | L7: 15000 | M7: 22000 | N7: 80 | P7: CS2-A 1500-60
A8: Adjustable | B8: CS2-A 1500 | C8: 1500 | D8: 70 | E8: 0.2 | F8: 36 | G8: 25 | H8: 150 | I8: 62 | J8: 77 | K8: 202 | L8: 15000 | M8: 22000 | N8: 80 | P8: CS2-A 1500-70
A9: Adjustable | B9: CS2-A 1500 | C9: 1500 | D9: 80 | E9: 0.2 | F9: 36 | G9: 25 | H9: 150 | I9: 72 | J9: 87 | K9: 212 | L9: 15000 | M9: 22000 | N9: 80 | P9: CS2-A 1500-80
A10: Adjustable | B10: CS2-A 1500 | C10: 1500 | D10: 90 | E10: 0.2 | F10: 36 | G10: 25 | H10: 150 | I10: 82 | J10: 97 | K10: 222 | L10: 15000 | M10: 22000 | N10: 80 | P10: CS2-A 1500-90
A11: Adjustable | B11: CS2-A 1500 | C11: 1500 | D11: 100 | E11: 0.2 | F11: 36 | G11: 25 | H11: 150 | I11: 92 | J11: 107 | K11: 232 | L11: 15000 | M11: 22000 | N11: 80 | P11: CS2-A 1500-100
A12: Adjustable | B12: CS2-A 1500 | C12: 1500 | D12: 110 | E12: 0.2 | F12: 36 | G12: 25 | H12: 150 | I12: 102 | J12: 117 | K12: 242 | L12: 15000 | M12: 22000 | N12: 80 | P12: CS2-A 1500-110
A13: Adjustable | B13: CS2-A 1500 | C13: 1500 | D13: 120 | E13: 0.2 | F13: 36 | G13: 25 | H13: 150 | I13: 112 | J13: 127 | K13: 252 | L13: 15000 | M13: 22000 | N13: 80 | P13: CS2-A 1500-120
A14: Adjustable | B14: CS2-A 1500 | C14: 1500 | D14: 130 | E14: 0.2 | F14: 36 | G14: 25 | H14: 150 | I14: 122 | J14: 137 | K14: 262 | L14: 15000 | M14: 22000 | N14: 80 | P14: CS2-A 1500-130
A15: Adjustable | B15: CS2-A 1500 | C15: 1500 | D15: 140 | E15: 0.2 | F15: 36 | G15: 25 | H15: 150 | I15: 132 | J15: 147 | K15: 272 | L15: 15000 | M15: 22000 | N15: 80 | P15: CS2-A 1500-140
A16: Adjustable | B16: CS2-A 1500 | C16: 1500 | D16: 150 | E16: 0.2 | F16: 36 | G16: 25 | H16: 150 | I16: 142 | J16: 157 | K16: 282 | L16: 15000 | M16: 22000 | N16: 80 | P16: CS2-A 1500-150
A17: Adjustable | B17: CS2-A 1500 | C17: 1500 | D17: 160 | E17: 0.2 | F17: 36 | G17: 25 | H17: 150 | I17: 152 | J17: 167 | K17: 292 | L17: 15000 | M17: 22000 | N17: 80 | P17: CS2-A 1500-160
A18: Adjustable | B18: CS2-A 3000 | C18: 3000 | D18: 10 | E18: 0.2 | F18: 50 | G18: 25 | H18: 150 | I18: 6 | J18: 17 | K18: =K2+10 -> 152 | L18: 30000 | M18: 42000 | N18: 100 | P18: CS2-A 3000-10
A19: Adjustable | B19: CS2-A 3000 | C19: 3000 | D19: 20 | E19: 0.2 | F19: 50 | G19: 25 | H19: 150 | I19: 12 | J19: 27 | K19: =K3+10 -> 162 | L19: 30000 | M19: 42000 | N19: 100 | P19: CS2-A 3000-20
A20: Adjustable | B20: CS2-A 3000 | C20: 3000 | D20: 30 | E20: 0.2 | F20: 50 | G20: 25 | H20: 150 | I20: 22 | J20: 37 | K20: 172 | L20: 30000 | M20: 42000 | N20: 100 | P20: CS2-A 3000-30
A21: Adjustable | B21: CS2-A 3000 | C21: 3000 | D21: 40 | E21: 0.2 | F21: 50 | G21: 25 | H21: 150 | I21: 32 | J21: 47 | K21: 182 | L21: 30000 | M21: 42000 | N21: 100 | P21: CS2-A 3000-40
A22: Adjustable | B22: CS2-A 3000 | C22: 3000 | D22: 50 | E22: 0.2 | F22: 50 | G22: 25 | H22: 150 | I22: 42 | J22: 57 | K22: 192 | L22: 30000 | M22: 42000 | N22: 100 | P22: CS2-A 3000-50
A23: Adjustable | B23: CS2-A 3000 | C23: 3000 | D23: 60 | E23: 0.2 | F23: 50 | G23: 25 | H23: 150 | I23: 52 | J23: 67 | K23: 202 | L23: 30000 | M23: 42000 | N23: 100 | P23: CS2-A 3000-60
A24: Adjustable | B24: CS2-A 3000 | C24: 3000 | D24: 70 | E24: 0.2 | F24: 50 | G24: 25 | H24: 150 | I24: 62 | J24: 77 | K24: 212 | L24: 30000 | M24: 42000 | N24: 100 | P24: CS2-A 3000-70
A25: Adjustable | B25: CS2-A 3000 | C25: 3000 | D25: 80 | E25: 0.2 | F25: 50 | G25: 25 | H25: 150 | I25: 72 | J25: 87 | K25: 222 | L25: 30000 | M25: 42000 | N25: 100 | P25: CS2-A 3000-80
A26: Adjustable | B26: CS2-A 3000 | C26: 3000 | D26: 90 | E26: 0.2 | F26: 50 | G26: 25 | H26: 150 | I26: 82 | J26: 97 | K26: 232 | L26: 30000 | M26: 42000 | N26: 100 | P26: CS2-A 3000-90
A27: Adjustable | B27: CS2-A 3000 | C27: 3000 | D27: 100 | E27: 0.2 | F27: 50 | G27: 25 | H27: 150 | I27: 92 | J27: 107 | K27: 242 | L27: 30000 | M27: 42000 | N27: 100 | P27: CS2-A 3000-100
A28: Adjustable | B28: CS2-A 3000 | C28: 3000 | D28: 110 | E28: 0.2 | F28: 50 | G28: 25 | H28: 150 | I28: 102 | J28: 117 | K28: 252 | L28: 30000 | M28: 42000 | N28: 100 | P28: CS2-A 3000-110
A29: Adjustable | B29: CS2-A 3000 | C29: 3000 | D29: 120 | E29: 0.2 | F29: 50 | G29: 25 | H29: 150 | I29: 112 | J29: 127 | K29: 262 | L29: 30000 | M29: 42000 | N29: 100 | P29: CS2-A 3000-120
A30: Adjustable | B30: CS2-A 3000 | C30: 3000 | D30: 130 | E30: 0.2 | F30: 50 | G30: 25 | H30: 150 | I30: 122 | J30: 137 | K30: 272 | L30: 30000 | M30: 42000 | N30: 100 | P30: CS2-A 3000-130
A31: Adjustable | B31: CS2-A 3000 | C31: 3000 | D31: 140 | E31: 0.2 | F31: 50 | G31: 25 | H31: 150 | I31: 132 | J31: 147 | K31: 282 | L31: 30000 | M31: 42000 | N31: 100 | P31: CS2-A 3000-140
A32: Adjustable | B32: CS2-A 3000 | C32: 3000 | D32: 150 | E32: 0.2 | F32: 50 | G32: 25 | H32: 150 | I32: 142 | J32: 157 | K32: 292 | L32: 30000 | M32: 42000 | N32: 100 | P32: CS2-A 3000-150
A33: Adjustable | B33: CS2-A 3000 | C33: 3000 | D33: 160 | E33: 0.2 | F33: 50 | G33: 25 | H33: 150 | I33: 152 | J33: 167 | K33: 302 | L33: 30000 | M33: 42000 | N33: 100 | P33: CS2-A 3000-160
A34: Adjustable | B34: CS2-A 5000 | C34: 5000 | D34: 10 | E34: =AVERAGE(0.15,0.12) -> 0.135 | F34: 65 | G34: 25 | H34: 150 | I34: 6 | J34: 17 | K34: =K18+25 -> 177 | L34: 50000 | M34: 74000 | N34: 125 | P34: CS2-A 5000-10
A35: Adjustable | B35: CS2-A 5000 | C35: 5000 | D35: 20 | E35: =AVERAGE(0.15,0.12) -> 0.135 | F35: 65 | G35: 25 | H35: 150 | I35: 12 | J35: 27 | K35: =K19+25 -> 187 | L35: 50000 | M35: 74000 | N35: 125 | P35: CS2-A 5000-20
A36: Adjustable | B36: CS2-A 5000 | C36: 5000 | D36: 30 | E36: 0.135 | F36: 65 | G36: 25 | H36: 150 | I36: 22 | J36: 37 | K36: 197 | L36: 50000 | M36: 74000 | N36: 125 | P36: CS2-A 5000-30
A37: Adjustable | B37: CS2-A 5000 | C37: 5000 | D37: 40 | E37: 0.135 | F37: 65 | G37: 25 | H37: 150 | I37: 32 | J37: 47 | K37: 207 | L37: 50000 | M37: 74000 | N37: 125 | P37: CS2-A 5000-40
A38: Adjustable | B38: CS2-A 5000 | C38: 5000 | D38: 50 | E38: 0.135 | F38: 65 | G38: 25 | H38: 150 | I38: 42 | J38: 57 | K38: 217 | L38: 50000 | M38: 74000 | N38: 125 | P38: CS2-A 5000-50
A39: Adjustable | B39: CS2-A 5000 | C39: 5000 | D39: 60 | E39: 0.135 | F39: 65 | G39: 25 | H39: 150 | I39: 52 | J39: 67 | K39: 227 | L39: 50000 | M39: 74000 | N39: 125 | P39: CS2-A 5000-60
A40: Adjustable | B40: CS2-A 5000 | C40: 5000 | D40: 70 | E40: 0.135 | F40: 65 | G40: 25 | H40: 150 | I40: 62 | J40: 77 | K40: 237 | L40: 50000 | M40: 74000 | N40: 125 | P40: CS2-A 5000-70
A41: Adjustable | B41: CS2-A 5000 | C41: 5000 | D41: 80 | E41: 0.135 | F41: 65 | G41: 25 | H41: 150 | I41: 72 | J41: 87 | K41: 247 | L41: 50000 | M41: 74000 | N41: 125 | P41: CS2-A 5000-80
A42: Adjustable | B42: CS2-A 5000 | C42: 5000 | D42: 90 | E42: 0.135 | F42: 65 | G42: 25 | H42: 150 | I42: 82 | J42: 97 | K42: 257 | L42: 50000 | M42: 74000 | N42: 125 | P42: CS2-A 5000-90
A43: Adjustable | B43: CS2-A 5000 | C43: 5000 | D43: 100 | E43: 0.135 | F43: 65 | G43: 25 | H43: 150 | I43: 92 | J43: 107 | K43: 267 | L43: 50000 | M43: 74000 | N43: 125 | P43: CS2-A 5000-100
A44: Adjustable | B44: CS2-A 5000 | C44: 5000 | D44: 110 | E44: 0.135 | F44: 65 | G44: 25 | H44: 150 | I44: 102 | J44: 117 | K44: 277 | L44: 50000 | M44: 74000 | N44: 125 | P44: CS2-A 5000-110
A45: Adjustable | B45: CS2-A 5000 | C45: 5000 | D45: 120 | E45: 0.135 | F45: 65 | G45: 25 | H45: 150 | I45: 112 | J45: 127 | K45: 287 | L45: 50000 | M45: 74000 | N45: 125 | P45: CS2-A 5000-120
A46: Adjustable | B46: CS2-A 5000 | C46: 5000 | D46: 130 | E46: 0.135 | F46: 65 | G46: 25 | H46: 150 | I46: 122 | J46: 137 | K46: 297 | L46: 50000 | M46: 74000 | N46: 125 | P46: CS2-A 5000-130
A47: Adjustable | B47: CS2-A 5000 | C47: 5000 | D47: 140 | E47: 0.135 | F47: 65 | G47: 25 | H47: 150 | I47: 132 | J47: 147 | K47: 307 | L47: 50000 | M47: 74000 | N47: 125 | P47: CS2-A 5000-140
A48: Adjustable | B48: CS2-A 5000 | C48: 5000 | D48: 150 | E48: 0.135 | F48: 65 | G48: 25 | H48: 150 | I48: 142 | J48: 157 | K48: 317 | L48: 50000 | M48: 74000 | N48: 125 | P48: CS2-A 5000-150
A49: Adjustable | B49: CS2-A 5000 | C49: 5000 | D49: 160 | E49: 0.135 | F49: 65 | G49: 25 | H49: 150 | I49: 152 | J49: 167 | K49: 327 | L49: 50000 | M49: 74000 | N49: 125 | P49: CS2-A 5000-160
A50: Adjustable | B50: CS2-A 7500 | C50: 7500 | D50: 10 | E50: =AVERAGE(0.13,0.08) -> 0.105 | F50: 80 | G50: 25 | H50: 150 | I50: 8 | J50: 17 | K50: =K34+20 -> 197 | L50: 75000 | M50: 98000 | N50: 160 | P50: CS2-A 7500-10
A51: Adjustable | B51: CS2-A 7500 | C51: 7500 | D51: 20 | E51: =AVERAGE(0.13,0.08) -> 0.105 | F51: 80 | G51: 25 | H51: 150 | I51: 12 | J51: 27 | K51: =K35+20 -> 207 | L51: 75000 | M51: 98000 | N51: 160 | P51: CS2-A 7500-20
A52: Adjustable | B52: CS2-A 7500 | C52: 7500 | D52: 30 | E52: 0.105 | F52: 80 | G52: 25 | H52: 150 | I52: 22 | J52: 37 | K52: 217 | L52: 75000 | M52: 98000 | N52: 160 | P52: CS2-A 7500-30
A53: Adjustable | B53: CS2-A 7500 | C53: 7500 | D53: 40 | E53: 0.105 | F53: 80 | G53: 25 | H53: 150 | I53: 32 | J53: 47 | K53: 227 | L53: 75000 | M53: 98000 | N53: 160 | P53: CS2-A 7500-40
A54: Adjustable | B54: CS2-A 7500 | C54: 7500 | D54: 50 | E54: 0.105 | F54: 80 | G54: 25 | H54: 150 | I54: 42 | J54: 57 | K54: 237 | L54: 75000 | M54: 98000 | N54: 160 | P54: CS2-A 7500-50
A55: Adjustable | B55: CS2-A 7500 | C55: 7500 | D55: 60 | E55: 0.105 | F55: 80 | G55: 25 | H55: 150 | I55: 52 | J55: 67 | K55: 247 | L55: 75000 | M55: 98000 | N55: 160 | P55: CS2-A 7500-60
A56: Adjustable | B56: CS2-A 7500 | C56: 7500 | D56: 70 | E56: 0.105 | F56: 80 | G56: 25 | H56: 150 | I56: 62 | J56: 77 | K56: 257 | L56: 75000 | M56: 98000 | N56: 160 | P56: CS2-A 7500-70
A57: Adjustable | B57: CS2-A 7500 | C57: 7500 | D57: 80 | E57: 0.105 | F57: 80 | G57: 25 | H57: 150 | I57: 72 | J57: 87 | K57: 267 | L57: 75000 | M57: 98000 | N57: 160 | P57: CS2-A 7500-80
A58: Adjustable | B58: CS2-A 7500 | C58: 7500 | D58: 90 | E58: 0.105 | F58: 80 | G58: 25 | H58: 150 | I58: 82 | J58: 97 | K58: 277 | L58: 75000 | M58: 98000 | N58: 160 | P58: CS2-A 7500-90
A59: Adjustable | B59: CS2-A 7500 | C59: 7500 | D59: 100 | E59: 0.105 | F59: 80 | G59: 25 | H59: 150 | I59: 92 | J59: 107 | K59: 287 | L59: 75000 | M59: 98000 | N59: 160 | P59: CS2-A 7500-100
A60: Adjustable | B60: CS2-A 7500 | C60: 7500 | D60: 110 | E60: 0.105 | F60: 80 | G60: 25 | H60: 150 | I60: 102 | J60: 117 | K60: 297 | L60: 75000 | M60: 98000 | N60: 160 | P60: CS2-A 7500-110
A61: Adjustable | B61: CS2-A 7500 | C61: 7500 | D61: 120 | E61: 0.105 | F61: 80 | G61: 25 | H61: 150 | I61: 112 | J61: 127 | K61: 307 | L61: 75000 | M61: 98000 | N61: 160 | P61: CS2-A 7500-120
A62: Adjustable | B62: CS2-A 7500 | C62: 7500 | D62: 130 | E62: 0.105 | F62: 80 | G62: 25 | H62: 150 | I62: 122 | J62: 137 | K62: 317 | L62: 75000 | M62: 98000 | N62: 160 | P62: CS2-A 7500-130
A63: Adjustable | B63: CS2-A 7500 | C63: 7500 | D63: 140 | E63: 0.105 | F63: 80 | G63: 25 | H63: 150 | I63: 132 | J63: 147 | K63: 327 | L63: 75000 | M63: 98000 | N63: 160 | P63: CS2-A 7500-140
A64: Adjustable | B64: CS2-A 7500 | C64: 7500 | D64: 150 | E64: 0.105 | F64: 80 | G64: 25 | H64: 150 | I64: 142 | J64: 157 | K64: 337 | L64: 75000 | M64: 98000 | N64: 160 | P64: CS2-A 7500-150
A65: Adjustable | B65: CS2-A 7500 | C65: 7500 | D65: 160 | E65: 0.105 | F65: 80 | G65: 25 | H65: 150 | I65: 152 | J65: 167 | K65: 347 | L65: 75000 | M65: 98000 | N65: 160 | P65: CS2-A 7500-160
A66: Non Adjustable | B66: CS2 1500 | C66: 1500 | D66: 5 | E66: 0.2 | F66: 36 | G66: 25 | H66: 150 | I66: =D66 -> 5 | J66: =D66 -> 5 | K66: =125+D66 -> 130 | L66: 15000 | M66: 22000 | N66: 80 | P66: CS2 1500-05
A67: Non Adjustable | B67: CS2 1500 | C67: 1500 | D67: 6 | E67: 0.2 | F67: 36 | G67: 25 | H67: 150 | I67: 6 | J67: 6 | K67: 131 | L67: 15000 | M67: 22000 | N67: 80 | P67: CS2 1500-06
A68: Non Adjustable | B68: CS2 1500 | C68: 1500 | D68: 7 | E68: 0.2 | F68: 36 | G68: 25 | H68: 150 | I68: 7 | J68: 7 | K68: 132 | L68: 15000 | M68: 22000 | N68: 80 | P68: CS2 1500-07
A69: Non Adjustable | B69: CS2 1500 | C69: 1500 | D69: 8 | E69: 0.2 | F69: 36 | G69: 25 | H69: 150 | I69: 8 | J69: 8 | K69: 133 | L69: 15000 | M69: 22000 | N69: 80 | P69: CS2 1500-08
A70: Non Adjustable | B70: CS2 1500 | C70: 1500 | D70: 9 | E70: 0.2 | F70: 36 | G70: 25 | H70: 150 | I70: 9 | J70: 9 | K70: 134 | L70: 15000 | M70: 22000 | N70: 80 | P70: CS2 1500-09
A71: Non Adjustable | B71: CS2 1500 | C71: 1500 | D71: 10 | E71: 0.2 | F71: 36 | G71: 25 | H71: 150 | I71: =D71 -> 10 | J71: =D71 -> 10 | K71: =125+D71 -> 135 | L71: 15000 | M71: 22000 | N71: 80 | P71: CS2 1500-10
A72: Non Adjustable | B72: CS2 1500 | C72: 1500 | D72: 11 | E72: 0.2 | F72: 36 | G72: 25 | H72: 150 | I72: =D72 -> 11 | J72: =D72 -> 11 | K72: =125+D72 -> 136 | L72: 15000 | M72: 22000 | N72: 80 | P72: CS2 1500-11
A73: Non Adjustable | B73: CS2 1500 | C73: 1500 | D73: 12 | E73: 0.2 | F73: 36 | G73: 25 | H73: 150 | I73: 12 | J73: 12 | K73: 137 | L73: 15000 | M73: 22000 | N73: 80 | P73: CS2 1500-12
A74: Non Adjustable | B74: CS2 1500 | C74: 1500 | D74: 13 | E74: 0.2 | F74: 36 | G74: 25 | H74: 150 | I74: 13 | J74: 13 | K74: 138 | L74: 15000 | M74: 22000 | N74: 80 | P74: CS2 1500-13
A75: Non Adjustable | B75: CS2 1500 | C75: 1500 | D75: 14 | E75: 0.2 | F75: 36 | G75: 25 | H75: 150 | I75: 14 | J75: 14 | K75: 139 | L75: 15000 | M75: 22000 | N75: 80 | P75: CS2 1500-14
A76: Non Adjustable | B76: CS2 1500 | C76: 1500 | D76: 15 | E76: 0.2 | F76: 36 | G76: 25 | H76: 150 | I76: 15 | J76: 15 | K76: 140 | L76: 15000 | M76: 22000 | N76: 80 | P76: CS2 1500-15
A77: Non Adjustable | B77: CS2 1500 | C77: 1500 | D77: 16 | E77: 0.2 | F77: 36 | G77: 25 | H77: 150 | I77: 16 | J77: 16 | K77: 141 | L77: 15000 | M77: 22000 | N77: 80 | P77: CS2 1500-16
A78: Non Adjustable | B78: CS2 1500 | C78: 1500 | D78: 17 | E78: 0.2 | F78: 36 | G78: 25 | H78: 150 | I78: 17 | J78: 17 | K78: 142 | L78: 15000 | M78: 22000 | N78: 80 | P78: CS2 1500-17
A79: Non Adjustable | B79: CS2 1500 | C79: 1500 | D79: 18 | E79: 0.2 | F79: 36 | G79: 25 | H79: 150 | I79: 18 | J79: 18 | K79: 143 | L79: 15000 | M79: 22000 | N79: 80 | P79: CS2 1500-18
A80: Non Adjustable | B80: CS2 1500 | C80: 1500 | D80: 19 | E80: 0.2 | F80: 36 | G80: 25 | H80: 150 | I80: 19 | J80: 19 | K80: 144 | L80: 15000 | M80: 22000 | N80: 80 | P80: CS2 1500-19
A81: Non Adjustable | B81: CS2 1500 | C81: 1500 | D81: 20 | E81: 0.2 | F81: 36 | G81: 25 | H81: 150 | I81: 20 | J81: 20 | K81: 145 | L81: 15000 | M81: 22000 | N81: 80 | P81: CS2 1500-20
A82: Non Adjustable | B82: CS2 1500 | C82: 1500 | D82: 21 | E82: 0.2 | F82: 36 | G82: 25 | H82: 150 | I82: 21 | J82: 21 | K82: 146 | L82: 15000 | M82: 22000 | N82: 80 | P82: CS2 1500-21
A83: Non Adjustable | B83: CS2 1500 | C83: 1500 | D83: 22 | E83: 0.2 | F83: 36 | G83: 25 | H83: 150 | I83: 22 | J83: 22 | K83: 147 | L83: 15000 | M83: 22000 | N83: 80 | P83: CS2 1500-22
A84: Non Adjustable | B84: CS2 1500 | C84: 1500 | D84: 23 | E84: 0.2 | F84: 36 | G84: 25 | H84: 150 | I84: 23 | J84: 23 | K84: 148 | L84: 15000 | M84: 22000 | N84: 80 | P84: CS2 1500-23
A85: Non Adjustable | B85: CS2 1500 | C85: 1500 | D85: 24 | E85: 0.2 | F85: 36 | G85: 25 | H85: 150 | I85: 24 | J85: 24 | K85: 149 | L85: 15000 | M85: 22000 | N85: 80 | P85: CS2 1500-24
A86: Non Adjustable | B86: CS2 1500 | C86: 1500 | D86: 25 | E86: 0.2 | F86: 36 | G86: 25 | H86: 150 | I86: 25 | J86: 25 | K86: 150 | L86: 15000 | M86: 22000 | N86: 80 | P86: CS2 1500-25
A87: Non Adjustable | B87: CS2 1500 | C87: 1500 | D87: 26 | E87: 0.2 | F87: 36 | G87: 25 | H87: 150 | I87: 26 | J87: 26 | K87: 151 | L87: 15000 | M87: 22000 | N87: 80 | P87: CS2 1500-26
A88: Non Adjustable | B88: CS2 1500 | C88: 1500 | D88: 27 | E88: 0.2 | F88: 36 | G88: 25 | H88: 150 | I88: 27 | J88: 27 | K88: 152 | L88: 15000 | M88: 22000 | N88: 80 | P88: CS2 1500-27
A89: Non Adjustable | B89: CS2 1500 | C89: 1500 | D89: 28 | E89: 0.2 | F89: 36 | G89: 25 | H89: 150 | I89: 28 | J89: 28 | K89: 153 | L89: 15000 | M89: 22000 | N89: 80 | P89: CS2 1500-28
A90: Non Adjustable | B90: CS2 1500 | C90: 1500 | D90: 29 | E90: 0.2 | F90: 36 | G90: 25 | H90: 150 | I90: 29 | J90: 29 | K90: 154 | L90: 15000 | M90: 22000 | N90: 80 | P90: CS2 1500-29
A91: Non Adjustable | B91: CS2 1500 | C91: 1500 | D91: 30 | E91: 0.2 | F91: 36 | G91: 25 | H91: 150 | I91: 30 | J91: 30 | K91: 155 | L91: 15000 | M91: 22000 | N91: 80 | P91: CS2 1500-30
A92: Non Adjustable | B92: CS2 1500 | C92: 1500 | D92: 31 | E92: 0.2 | F92: 36 | G92: 25 | H92: 150 | I92: 31 | J92: 31 | K92: 156 | L92: 15000 | M92: 22000 | N92: 80 | P92: CS2 1500-31
A93: Non Adjustable | B93: CS2 1500 | C93: 1500 | D93: 32 | E93: 0.2 | F93: 36 | G93: 25 | H93: 150 | I93: 32 | J93: 32 | K93: 157 | L93: 15000 | M93: 22000 | N93: 80 | P93: CS2 1500-32
A94: Non Adjustable | B94: CS2 1500 | C94: 1500 | D94: 33 | E94: 0.2 | F94: 36 | G94: 25 | H94: 150 | I94: 33 | J94: 33 | K94: 158 | L94: 15000 | M94: 22000 | N94: 80 | P94: CS2 1500-33
A95: Non Adjustable | B95: CS2 1500 | C95: 1500 | D95: 34 | E95: 0.2 | F95: 36 | G95: 25 | H95: 150 | I95: 34 | J95: 34 | K95: 159 | L95: 15000 | M95: 22000 | N95: 80 | P95: CS2 1500-34
A96: Non Adjustable | B96: CS2 1500 | C96: 1500 | D96: 35 | E96: 0.2 | F96: 36 | G96: 25 | H96: 150 | I96: 35 | J96: 35 | K96: 160 | L96: 15000 | M96: 22000 | N96: 80 | P96: CS2 1500-35
A97: Non Adjustable | B97: CS2 1500 | C97: 1500 | D97: 36 | E97: 0.2 | F97: 36 | G97: 25 | H97: 150 | I97: 36 | J97: 36 | K97: 161 | L97: 15000 | M97: 22000 | N97: 80 | P97: CS2 1500-36
A98: Non Adjustable | B98: CS2 1500 | C98: 1500 | D98: 37 | E98: 0.2 | F98: 36 | G98: 25 | H98: 150 | I98: 37 | J98: 37 | K98: 162 | L98: 15000 | M98: 22000 | N98: 80 | P98: CS2 1500-37
A99: Non Adjustable | B99: CS2 1500 | C99: 1500 | D99: 38 | E99: 0.2 | F99: 36 | G99: 25 | H99: 150 | I99: 38 | J99: 38 | K99: 163 | L99: 15000 | M99: 22000 | N99: 80 | P99: CS2 1500-38
A100: Non Adjustable | B100: CS2 1500 | C100: 1500 | D100: 39 | E100: 0.2 | F100: 36 | G100: 25 | H100: 150 | I100: 39 | J100: 39 | K100: 164 | L100: 15000 | M100: 22000 | N100: 80 | P100: CS2 1500-39
A101: Non Adjustable | B101: CS2 1500 | C101: 1500 | D101: 40 | E101: 0.2 | F101: 36 | G101: 25 | H101: 150 | I101: 40 | J101: 40 | K101: 165 | L101: 15000 | M101: 22000 | N101: 80 | P101: CS2 1500-40
A102: Non Adjustable | B102: CS2 1500 | C102: 1500 | D102: 41 | E102: 0.2 | F102: 36 | G102: 25 | H102: 150 | I102: 41 | J102: 41 | K102: 166 | L102: 15000 | M102: 22000 | N102: 80 | P102: CS2 1500-41
A103: Non Adjustable | B103: CS2 1500 | C103: 1500 | D103: 42 | E103: 0.2 | F103: 36 | G103: 25 | H103: 150 | I103: 42 | J103: 42 | K103: 167 | L103: 15000 | M103: 22000 | N103: 80 | P103: CS2 1500-42
A104: Non Adjustable | B104: CS2 1500 | C104: 1500 | D104: 43 | E104: 0.2 | F104: 36 | G104: 25 | H104: 150 | I104: 43 | J104: 43 | K104: 168 | L104: 15000 | M104: 22000 | N104: 80 | P104: CS2 1500-43
A105: Non Adjustable | B105: CS2 1500 | C105: 1500 | D105: 44 | E105: 0.2 | F105: 36 | G105: 25 | H105: 150 | I105: 44 | J105: 44 | K105: 169 | L105: 15000 | M105: 22000 | N105: 80 | P105: CS2 1500-44
A106: Non Adjustable | B106: CS2 1500 | C106: 1500 | D106: 45 | E106: 0.2 | F106: 36 | G106: 25 | H106: 150 | I106: 45 | J106: 45 | K106: 170 | L106: 15000 | M106: 22000 | N106: 80 | P106: CS2 1500-45
A107: Non Adjustable | B107: CS2 1500 | C107: 1500 | D107: 46 | E107: 0.2 | F107: 36 | G107: 25 | H107: 150 | I107: 46 | J107: 46 | K107: 171 | L107: 15000 | M107: 22000 | N107: 80 | P107: CS2 1500-46
A108: Non Adjustable | B108: CS2 1500 | C108: 1500 | D108: 47 | E108: 0.2 | F108: 36 | G108: 25 | H108: 150 | I108: 47 | J108: 47 | K108: 172 | L108: 15000 | M108: 22000 | N108: 80 | P108: CS2 1500-47
A109: Non Adjustable | B109: CS2 1500 | C109: 1500 | D109: 48 | E109: 0.2 | F109: 36 | G109: 25 | H109: 150 | I109: 48 | J109: 48 | K109: 173 | L109: 15000 | M109: 22000 | N109: 80 | P109: CS2 1500-48
A110: Non Adjustable | B110: CS2 1500 | C110: 1500 | D110: 49 | E110: 0.2 | F110: 36 | G110: 25 | H110: 150 | I110: 49 | J110: 49 | K110: 174 | L110: 15000 | M110: 22000 | N110: 80 | P110: CS2 1500-49
A111: Non Adjustable | B111: CS2 1500 | C111: 1500 | D111: 50 | E111: 0.2 | F111: 36 | G111: 25 | H111: 150 | I111: 50 | J111: 50 | K111: 175 | L111: 15000 | M111: 22000 | N111: 80 | P111: CS2 1500-50
A112: Non Adjustable | B112: CS2 1500 | C112: 1500 | D112: 51 | E112: 0.2 | F112: 36 | G112: 25 | H112: 150 | I112: 51 | J112: 51 | K112: 176 | L112: 15000 | M112: 22000 | N112: 80 | P112: CS2 1500-51
A113: Non Adjustable | B113: CS2 1500 | C113: 1500 | D113: 52 | E113: 0.2 | F113: 36 | G113: 25 | H113: 150 | I113: 52 | J113: 52 | K113: 177 | L113: 15000 | M113: 22000 | N113: 80 | P113: CS2 1500-52
A114: Non Adjustable | B114: CS2 1500 | C114: 1500 | D114: 53 | E114: 0.2 | F114: 36 | G114: 25 | H114: 150 | I114: 53 | J114: 53 | K114: 178 | L114: 15000 | M114: 22000 | N114: 80 | P114: CS2 1500-53
A115: Non Adjustable | B115: CS2 1500 | C115: 1500 | D115: 54 | E115: 0.2 | F115: 36 | G115: 25 | H115: 150 | I115: 54 | J115: 54 | K115: 179 | L115: 15000 | M115: 22000 | N115: 80 | P115: CS2 1500-54
A116: Non Adjustable | B116: CS2 1500 | C116: 1500 | D116: 55 | E116: 0.2 | F116: 36 | G116: 25 | H116: 150 | I116: 55 | J116: 55 | K116: 180 | L116: 15000 | M116: 22000 | N116: 80 | P116: CS2 1500-55
A117: Non Adjustable | B117: CS2 1500 | C117: 1500 | D117: 56 | E117: 0.2 | F117: 36 | G117: 25 | H117: 150 | I117: 56 | J117: 56 | K117: 181 | L117: 15000 | M117: 22000 | N117: 80 | P117: CS2 1500-56
A118: Non Adjustable | B118: CS2 1500 | C118: 1500 | D118: 57 | E118: 0.2 | F118: 36 | G118: 25 | H118: 150 | I118: 57 | J118: 57 | K118: 182 | L118: 15000 | M118: 22000 | N118: 80 | P118: CS2 1500-57
A119: Non Adjustable | B119: CS2 1500 | C119: 1500 | D119: 58 | E119: 0.2 | F119: 36 | G119: 25 | H119: 150 | I119: 58 | J119: 58 | K119: 183 | L119: 15000 | M119: 22000 | N119: 80 | P119: CS2 1500-58
A120: Non Adjustable | B120: CS2 1500 | C120: 1500 | D120: 59 | E120: 0.2 | F120: 36 | G120: 25 | H120: 150 | I120: 59 | J120: 59 | K120: 184 | L120: 15000 | M120: 22000 | N120: 80 | P120: CS2 1500-59
A121: Non Adjustable | B121: CS2 1500 | C121: 1500 | D121: 60 | E121: 0.2 | F121: 36 | G121: 25 | H121: 150 | I121: 60 | J121: 60 | K121: 185 | L121: 15000 | M121: 22000 | N121: 80 | P121: CS2 1500-60
A122: Non Adjustable | B122: CS2 1500 | C122: 1500 | D122: 61 | E122: 0.2 | F122: 36 | G122: 25 | H122: 150 | I122: 61 | J122: 61 | K122: 186 | L122: 15000 | M122: 22000 | N122: 80 | P122: CS2 1500-61
A123: Non Adjustable | B123: CS2 1500 | C123: 1500 | D123: 62 | E123: 0.2 | F123: 36 | G123: 25 | H123: 150 | I123: 62 | J123: 62 | K123: 187 | L123: 15000 | M123: 22000 | N123: 80 | P123: CS2 1500-62
A124: Non Adjustable | B124: CS2 1500 | C124: 1500 | D124: 63 | E124: 0.2 | F124: 36 | G124: 25 | H124: 150 | I124: 63 | J124: 63 | K124: 188 | L124: 15000 | M124: 22000 | N124: 80 | P124: CS2 1500-63
A125: Non Adjustable | B125: CS2 1500 | C125: 1500 | D125: 64 | E125: 0.2 | F125: 36 | G125: 25 | H125: 150 | I125: 64 | J125: 64 | K125: 189 | L125: 15000 | M125: 22000 | N125: 80 | P125: CS2 1500-64
A126: Non Adjustable | B126: CS2 1500 | C126: 1500 | D126: 65 | E126: 0.2 | F126: 36 | G126: 25 | H126: 150 | I126: 65 | J126: 65 | K126: 190 | L126: 15000 | M126: 22000 | N126: 80 | P126: CS2 1500-65
A127: Non Adjustable | B127: CS2 1500 | C127: 1500 | D127: 66 | E127: 0.2 | F127: 36 | G127: 25 | H127: 150 | I127: 66 | J127: 66 | K127: 191 | L127: 15000 | M127: 22000 | N127: 80 | P127: CS2 1500-66
A128: Non Adjustable | B128: CS2 1500 | C128: 1500 | D128: 67 | E128: 0.2 | F128: 36 | G128: 25 | H128: 150 | I128: 67 | J128: 67 | K128: 192 | L128: 15000 | M128: 22000 | N128: 80 | P128: CS2 1500-67
A129: Non Adjustable | B129: CS2 1500 | C129: 1500 | D129: 68 | E129: 0.2 | F129: 36 | G129: 25 | H129: 150 | I129: 68 | J129: 68 | K129: 193 | L129: 15000 | M129: 22000 | N129: 80 | P129: CS2 1500-68
A130: Non Adjustable | B130: CS2 1500 | C130: 1500 | D130: 69 | E130: 0.2 | F130: 36 | G130: 25 | H130: 150 | I130: 69 | J130: 69 | K130: 194 | L130: 15000 | M130: 22000 | N130: 80 | P130: CS2 1500-69
A131: Non Adjustable | B131: CS2 1500 | C131: 1500 | D131: 70 | E131: 0.2 | F131: 36 | G131: 25 | H131: 150 | I131: 70 | J131: 70 | K131: 195 | L131: 15000 | M131: 22000 | N131: 80 | P131: CS2 1500-70
A132: Non Adjustable | B132: CS2 1500 | C132: 1500 | D132: 71 | E132: 0.2 | F132: 36 | G132: 25 | H132: 150 | I132: 71 | J132: 71 | K132: 196 | L132: 15000 | M132: 22000 | N132: 80 | P132: CS2 1500-71
A133: Non Adjustable | B133: CS2 1500 | C133: 1500 | D133: 72 | E133: 0.2 | F133: 36 | G133: 25 | H133: 150 | I133: 72 | J133: 72 | K133: 197 | L133: 15000 | M133: 22000 | N133: 80 | P133: CS2 1500-72
A134: Non Adjustable | B134: CS2 1500 | C134: 1500 | D134: 73 | E134: 0.2 | F134: 36 | G134: 25 | H134: 150 | I134: 73 | J134: 73 | K134: 198 | L134: 15000 | M134: 22000 | N134: 80 | P134: CS2 1500-73
A135: Non Adjustable | B135: CS2 1500 | C135: 1500 | D135: 74 | E135: 0.2 | F135: 36 | G135: 25 | H135: 150 | I135: 74 | J135: 74 | K135: 199 | L135: 15000 | M135: 22000 | N135: 80 | P135: CS2 1500-74
A136: Non Adjustable | B136: CS2 1500 | C136: 1500 | D136: 75 | E136: 0.2 | F136: 36 | G136: 25 | H136: 150 | I136: =D136 -> 75 | J136: =D136 -> 75 | K136: =125+D136 -> 200 | L136: 15000 | M136: 22000 | N136: 80 | P136: CS2 1500-75
A137: Non Adjustable | B137: CS2 1500 | C137: 1500 | D137: 76 | E137: 0.2 | F137: 36 | G137: 25 | H137: 150 | I137: 76 | J137: 76 | K137: 201 | L137: 15000 | M137: 22000 | N137: 80 | P137: CS2 1500-76
A138: Non Adjustable | B138: CS2 1500 | C138: 1500 | D138: 77 | E138: 0.2 | F138: 36 | G138: 25 | H138: 150 | I138: 77 | J138: 77 | K138: 202 | L138: 15000 | M138: 22000 | N138: 80 | P138: CS2 1500-77
A139: Non Adjustable | B139: CS2 1500 | C139: 1500 | D139: 78 | E139: 0.2 | F139: 36 | G139: 25 | H139: 150 | I139: 78 | J139: 78 | K139: 203 | L139: 15000 | M139: 22000 | N139: 80 | P139: CS2 1500-78
A140: Non Adjustable | B140: CS2 1500 | C140: 1500 | D140: 79 | E140: 0.2 | F140: 36 | G140: 25 | H140: 150 | I140: 79 | J140: 79 | K140: 204 | L140: 15000 | M140: 22000 | N140: 80 | P140: CS2 1500-79
A141: Non Adjustable | B141: CS2 1500 | C141: 1500 | D141: 80 | E141: 0.2 | F141: 36 | G141: 25 | H141: 150 | I141: 80 | J141: 80 | K141: 205 | L141: 15000 | M141: 22000 | N141: 80 | P141: CS2 1500-80
A142: Non Adjustable | B142: CS2 1500 | C142: 1500 | D142: 81 | E142: 0.2 | F142: 36 | G142: 25 | H142: 150 | I142: 81 | J142: 81 | K142: 206 | L142: 15000 | M142: 22000 | N142: 80 | P142: CS2 1500-81
A143: Non Adjustable | B143: CS2 1500 | C143: 1500 | D143: 82 | E143: 0.2 | F143: 36 | G143: 25 | H143: 150 | I143: 82 | J143: 82 | K143: 207 | L143: 15000 | M143: 22000 | N143: 80 | P143: CS2 1500-82
A144: Non Adjustable | B144: CS2 1500 | C144: 1500 | D144: 83 | E144: 0.2 | F144: 36 | G144: 25 | H144: 150 | I144: 83 | J144: 83 | K144: 208 | L144: 15000 | M144: 22000 | N144: 80 | P144: CS2 1500-83
A145: Non Adjustable | B145: CS2 1500 | C145: 1500 | D145: 84 | E145: 0.2 | F145: 36 | G145: 25 | H145: 150 | I145: 84 | J145: 84 | K145: 209 | L145: 15000 | M145: 22000 | N145: 80 | P145: CS2 1500-84
A146: Non Adjustable | B146: CS2 1500 | C146: 1500 | D146: 85 | E146: 0.2 | F146: 36 | G146: 25 | H146: 150 | I146: 85 | J146: 85 | K146: 210 | L146: 15000 | M146: 22000 | N146: 80 | P146: CS2 1500-85
A147: Non Adjustable | B147: CS2 1500 | C147: 1500 | D147: 86 | E147: 0.2 | F147: 36 | G147: 25 | H147: 150 | I147: 86 | J147: 86 | K147: 211 | L147: 15000 | M147: 22000 | N147: 80 | P147: CS2 1500-86
A148: Non Adjustable | B148: CS2 1500 | C148: 1500 | D148: 87 | E148: 0.2 | F148: 36 | G148: 25 | H148: 150 | I148: 87 | J148: 87 | K148: 212 | L148: 15000 | M148: 22000 | N148: 80 | P148: CS2 1500-87
A149: Non Adjustable | B149: CS2 1500 | C149: 1500 | D149: 88 | E149: 0.2 | F149: 36 | G149: 25 | H149: 150 | I149: 88 | J149: 88 | K149: 213 | L149: 15000 | M149: 22000 | N149: 80 | P149: CS2 1500-88
A150: Non Adjustable | B150: CS2 1500 | C150: 1500 | D150: 89 | E150: 0.2 | F150: 36 | G150: 25 | H150: 150 | I150: 89 | J150: 89 | K150: 214 | L150: 15000 | M150: 22000 | N150: 80 | P150: CS2 1500-89
A151: Non Adjustable | B151: CS2 1500 | C151: 1500 | D151: 90 | E151: 0.2 | F151: 36 | G151: 25 | H151: 150 | I151: 90 | J151: 90 | K151: 215 | L151: 15000 | M151: 22000 | N151: 80 | P151: CS2 1500-90
A152: Non Adjustable | B152: CS2 1500 | C152: 1500 | D152: 91 | E152: 0.2 | F152: 36 | G152: 25 | H152: 150 | I152: 91 | J152: 91 | K152: 216 | L152: 15000 | M152: 22000 | N152: 80 | P152: CS2 1500-91
A153: Non Adjustable | B153: CS2 1500 | C153: 1500 | D153: 92 | E153: 0.2 | F153: 36 | G153: 25 | H153: 150 | I153: 92 | J153: 92 | K153: 217 | L153: 15000 | M153: 22000 | N153: 80 | P153: CS2 1500-92
A154: Non Adjustable | B154: CS2 1500 | C154: 1500 | D154: 93 | E154: 0.2 | F154: 36 | G154: 25 | H154: 150 | I154: 93 | J154: 93 | K154: 218 | L154: 15000 | M154: 22000 | N154: 80 | P154: CS2 1500-93
A155: Non Adjustable | B155: CS2 1500 | C155: 1500 | D155: 94 | E155: 0.2 | F155: 36 | G155: 25 | H155: 150 | I155: 94 | J155: 94 | K155: 219 | L155: 15000 | M155: 22000 | N155: 80 | P155: CS2 1500-94
A156: Non Adjustable | B156: CS2 1500 | C156: 1500 | D156: 95 | E156: 0.2 | F156: 36 | G156: 25 | H156: 150 | I156: 95 | J156: 95 | K156: 220 | L156: 15000 | M156: 22000 | N156: 80 | P156: CS2 1500-95
A157: Non Adjustable | B157: CS2 1500 | C157: 1500 | D157: 96 | E157: 0.2 | F157: 36 | G157: 25 | H157: 150 | I157: 96 | J157: 96 | K157: 221 | L157: 15000 | M157: 22000 | N157: 80 | P157: CS2 1500-96
A158: Non Adjustable | B158: CS2 1500 | C158: 1500 | D158: 97 | E158: 0.2 | F158: 36 | G158: 25 | H158: 150 | I158: 97 | J158: 97 | K158: 222 | L158: 15000 | M158: 22000 | N158: 80 | P158: CS2 1500-97
A159: Non Adjustable | B159: CS2 1500 | C159: 1500 | D159: 98 | E159: 0.2 | F159: 36 | G159: 25 | H159: 150 | I159: 98 | J159: 98 | K159: 223 | L159: 15000 | M159: 22000 | N159: 80 | P159: CS2 1500-98
A160: Non Adjustable | B160: CS2 1500 | C160: 1500 | D160: 99 | E160: 0.2 | F160: 36 | G160: 25 | H160: 150 | I160: 99 | J160: 99 | K160: 224 | L160: 15000 | M160: 22000 | N160: 80 | P160: CS2 1500-99
A161: Non Adjustable | B161: CS2 1500 | C161: 1500 | D161: 100 | E161: 0.2 | F161: 36 | G161: 25 | H161: 150 | I161: 100 | J161: 100 | K161: 225 | L161: 15000 | M161: 22000 | N161: 80 | P161: CS2 1500-100
A162: Non Adjustable | B162: CS2 1500 | C162: 1500 | D162: 101 | E162: 0.2 | F162: 36 | G162: 25 | H162: 150 | I162: 101 | J162: 101 | K162: 226 | L162: 15000 | M162: 22000 | N162: 80 | P162: CS2 1500-101
A163: Non Adjustable | B163: CS2 1500 | C163: 1500 | D163: 102 | E163: 0.2 | F163: 36 | G163: 25 | H163: 150 | I163: 102 | J163: 102 | K163: 227 | L163: 15000 | M163: 22000 | N163: 80 | P163: CS2 1500-102
A164: Non Adjustable | B164: CS2 1500 | C164: 1500 | D164: 103 | E164: 0.2 | F164: 36 | G164: 25 | H164: 150 | I164: 103 | J164: 103 | K164: 228 | L164: 15000 | M164: 22000 | N164: 80 | P164: CS2 1500-103
A165: Non Adjustable | B165: CS2 1500 | C165: 1500 | D165: 104 | E165: 0.2 | F165: 36 | G165: 25 | H165: 150 | I165: 104 | J165: 104 | K165: 229 | L165: 15000 | M165: 22000 | N165: 80 | P165: CS2 1500-104
A166: Non Adjustable | B166: CS2 1500 | C166: 1500 | D166: 105 | E166: 0.2 | F166: 36 | G166: 25 | H166: 150 | I166: 105 | J166: 105 | K166: 230 | L166: 15000 | M166: 22000 | N166: 80 | P166: CS2 1500-105
A167: Non Adjustable | B167: CS2 1500 | C167: 1500 | D167: 106 | E167: 0.2 | F167: 36 | G167: 25 | H167: 150 | I167: 106 | J167: 106 | K167: 231 | L167: 15000 | M167: 22000 | N167: 80 | P167: CS2 1500-106
A168: Non Adjustable | B168: CS2 1500 | C168: 1500 | D168: 107 | E168: 0.2 | F168: 36 | G168: 25 | H168: 150 | I168: 107 | J168: 107 | K168: 232 | L168: 15000 | M168: 22000 | N168: 80 | P168: CS2 1500-107
A169: Non Adjustable | B169: CS2 1500 | C169: 1500 | D169: 108 | E169: 0.2 | F169: 36 | G169: 25 | H169: 150 | I169: 108 | J169: 108 | K169: 233 | L169: 15000 | M169: 22000 | N169: 80 | P169: CS2 1500-108
A170: Non Adjustable | B170: CS2 1500 | C170: 1500 | D170: 109 | E170: 0.2 | F170: 36 | G170: 25 | H170: 150 | I170: 109 | J170: 109 | K170: 234 | L170: 15000 | M170: 22000 | N170: 80 | P170: CS2 1500-109
A171: Non Adjustable | B171: CS2 1500 | C171: 1500 | D171: 110 | E171: 0.2 | F171: 36 | G171: 25 | H171: 150 | I171: 110 | J171: 110 | K171: 235 | L171: 15000 | M171: 22000 | N171: 80 | P171: CS2 1500-110
A172: Non Adjustable | B172: CS2 1500 | C172: 1500 | D172: 111 | E172: 0.2 | F172: 36 | G172: 25 | H172: 150 | I172: 111 | J172: 111 | K172: 236 | L172: 15000 | M172: 22000 | N172: 80 | P172: CS2 1500-111
A173: Non Adjustable | B173: CS2 1500 | C173: 1500 | D173: 112 | E173: 0.2 | F173: 36 | G173: 25 | H173: 150 | I173: 112 | J173: 112 | K173: 237 | L173: 15000 | M173: 22000 | N173: 80 | P173: CS2 1500-112
A174: Non Adjustable | B174: CS2 1500 | C174: 1500 | D174: 113 | E174: 0.2 | F174: 36 | G174: 25 | H174: 150 | I174: 113 | J174: 113 | K174: 238 | L174: 15000 | M174: 22000 | N174: 80 | P174: CS2 1500-113
A175: Non Adjustable | B175: CS2 1500 | C175: 1500 | D175: 114 | E175: 0.2 | F175: 36 | G175: 25 | H175: 150 | I175: 114 | J175: 114 | K175: 239 | L175: 15000 | M175: 22000 | N175: 80 | P175: CS2 1500-114
A176: Non Adjustable | B176: CS2 1500 | C176: 1500 | D176: 115 | E176: 0.2 | F176: 36 | G176: 25 | H176: 150 | I176: 115 | J176: 115 | K176: 240 | L176: 15000 | M176: 22000 | N176: 80 | P176: CS2 1500-115
A177: Non Adjustable | B177: CS2 1500 | C177: 1500 | D177: 116 | E177: 0.2 | F177: 36 | G177: 25 | H177: 150 | I177: 116 | J177: 116 | K177: 241 | L177: 15000 | M177: 22000 | N177: 80 | P177: CS2 1500-116
A178: Non Adjustable | B178: CS2 1500 | C178: 1500 | D178: 117 | E178: 0.2 | F178: 36 | G178: 25 | H178: 150 | I178: 117 | J178: 117 | K178: 242 | L178: 15000 | M178: 22000 | N178: 80 | P178: CS2 1500-117
A179: Non Adjustable | B179: CS2 1500 | C179: 1500 | D179: 118 | E179: 0.2 | F179: 36 | G179: 25 | H179: 150 | I179: 118 | J179: 118 | K179: 243 | L179: 15000 | M179: 22000 | N179: 80 | P179: CS2 1500-118
A180: Non Adjustable | B180: CS2 1500 | C180: 1500 | D180: 119 | E180: 0.2 | F180: 36 | G180: 25 | H180: 150 | I180: 119 | J180: 119 | K180: 244 | L180: 15000 | M180: 22000 | N180: 80 | P180: CS2 1500-119
A181: Non Adjustable | B181: CS2 1500 | C181: 1500 | D181: 120 | E181: 0.2 | F181: 36 | G181: 25 | H181: 150 | I181: 120 | J181: 120 | K181: 245 | L181: 15000 | M181: 22000 | N181: 80 | P181: CS2 1500-120
A182: Non Adjustable | B182: CS2 1500 | C182: 1500 | D182: 121 | E182: 0.2 | F182: 36 | G182: 25 | H182: 150 | I182: 121 | J182: 121 | K182: 246 | L182: 15000 | M182: 22000 | N182: 80 | P182: CS2 1500-121
A183: Non Adjustable | B183: CS2 1500 | C183: 1500 | D183: 122 | E183: 0.2 | F183: 36 | G183: 25 | H183: 150 | I183: 122 | J183: 122 | K183: 247 | L183: 15000 | M183: 22000 | N183: 80 | P183: CS2 1500-122
A184: Non Adjustable | B184: CS2 1500 | C184: 1500 | D184: 123 | E184: 0.2 | F184: 36 | G184: 25 | H184: 150 | I184: 123 | J184: 123 | K184: 248 | L184: 15000 | M184: 22000 | N184: 80 | P184: CS2 1500-123
A185: Non Adjustable | B185: CS2 1500 | C185: 1500 | D185: 124 | E185: 0.2 | F185: 36 | G185: 25 | H185: 150 | I185: 124 | J185: 124 | K185: 249 | L185: 15000 | M185: 22000 | N185: 80 | P185: CS2 1500-124
A186: Non Adjustable | B186: CS2 1500 | C186: 1500 | D186: 125 | E186: 0.2 | F186: 36 | G186: 25 | H186: 150 | I186: 125 | J186: 125 | K186: 250 | L186: 15000 | M186: 22000 | N186: 80 | P186: CS2 1500-125
A187: Non Adjustable | B187: CS2 1500 | C187: 1500 | D187: 126 | E187: 0.2 | F187: 36 | G187: 25 | H187: 150 | I187: 126 | J187: 126 | K187: 251 | L187: 15000 | M187: 22000 | N187: 80 | P187: CS2 1500-126
A188: Non Adjustable | B188: CS2 1500 | C188: 1500 | D188: 127 | E188: 0.2 | F188: 36 | G188: 25 | H188: 150 | I188: 127 | J188: 127 | K188: 252 | L188: 15000 | M188: 22000 | N188: 80 | P188: CS2 1500-127
A189: Non Adjustable | B189: CS2 1500 | C189: 1500 | D189: 128 | E189: 0.2 | F189: 36 | G189: 25 | H189: 150 | I189: 128 | J189: 128 | K189: 253 | L189: 15000 | M189: 22000 | N189: 80 | P189: CS2 1500-128
A190: Non Adjustable | B190: CS2 1500 | C190: 1500 | D190: 129 | E190: 0.2 | F190: 36 | G190: 25 | H190: 150 | I190: 129 | J190: 129 | K190: 254 | L190: 15000 | M190: 22000 | N190: 80 | P190: CS2 1500-129
A191: Non Adjustable | B191: CS2 1500 | C191: 1500 | D191: 130 | E191: 0.2 | F191: 36 | G191: 25 | H191: 150 | I191: 130 | J191: 130 | K191: 255 | L191: 15000 | M191: 22000 | N191: 80 | P191: CS2 1500-130
A192: Non Adjustable | B192: CS2 1500 | C192: 1500 | D192: 131 | E192: 0.2 | F192: 36 | G192: 25 | H192: 150 | I192: 131 | J192: 131 | K192: 256 | L192: 15000 | M192: 22000 | N192: 80 | P192: CS2 1500-131
A193: Non Adjustable | B193: CS2 1500 | C193: 1500 | D193: 132 | E193: 0.2 | F193: 36 | G193: 25 | H193: 150 | I193: 132 | J193: 132 | K193: 257 | L193: 15000 | M193: 22000 | N193: 80 | P193: CS2 1500-132
A194: Non Adjustable | B194: CS2 1500 | C194: 1500 | D194: 133 | E194: 0.2 | F194: 36 | G194: 25 | H194: 150 | I194: 133 | J194: 133 | K194: 258 | L194: 15000 | M194: 22000 | N194: 80 | P194: CS2 1500-133
A195: Non Adjustable | B195: CS2 1500 | C195: 1500 | D195: 134 | E195: 0.2 | F195: 36 | G195: 25 | H195: 150 | I195: 134 | J195: 134 | K195: 259 | L195: 15000 | M195: 22000 | N195: 80 | P195: CS2 1500-134
A196: Non Adjustable | B196: CS2 1500 | C196: 1500 | D196: 135 | E196: 0.2 | F196: 36 | G196: 25 | H196: 150 | I196: 135 | J196: 135 | K196: 260 | L196: 15000 | M196: 22000 | N196: 80 | P196: CS2 1500-135
A197: Non Adjustable | B197: CS2 1500 | C197: 1500 | D197: 136 | E197: 0.2 | F197: 36 | G197: 25 | H197: 150 | I197: 136 | J197: 136 | K197: 261 | L197: 15000 | M197: 22000 | N197: 80 | P197: CS2 1500-136
A198: Non Adjustable | B198: CS2 1500 | C198: 1500 | D198: 137 | E198: 0.2 | F198: 36 | G198: 25 | H198: 150 | I198: 137 | J198: 137 | K198: 262 | L198: 15000 | M198: 22000 | N198: 80 | P198: CS2 1500-137
A199: Non Adjustable | B199: CS2 1500 | C199: 1500 | D199: 138 | E199: 0.2 | F199: 36 | G199: 25 | H199: 150 | I199: 138 | J199: 138 | K199: 263 | L199: 15000 | M199: 22000 | N199: 80 | P199: CS2 1500-138
A200: Non Adjustable | B200: CS2 1500 | C200: 1500 | D200: 139 | E200: 0.2 | F200: 36 | G200: 25 | H200: 150 | I200: =D200 -> 139 | J200: =D200 -> 139 | K200: =125+D200 -> 264 | L200: 15000 | M200: 22000 | N200: 80 | P200: CS2 1500-139
... 484 more rows

Sheet Length_Adjustment (hidden)
A3: Adjustment | B3: 1 | C3: 2 | D3: 4 | E3: 8 | I3: Spacer (1 mm) | J3: =VLOOKUP(Stroke_adjustment,Adjustment,2) -> 0
A4: -8 | B4: 1 | C4: 1 | D4: 1 | E4: 1 | I4: Spacer (2 mm) | J4: =VLOOKUP(Stroke_adjustment,Adjustment,3) -> 0
A5: -7 | B5: 0 | C5: 1 | D5: 1 | E5: 1 | I5: Spacer (4 mm) | J5: =VLOOKUP(Stroke_adjustment,Adjustment,4) -> 1
A6: -6 | B6: 1 | C6: 0 | D6: 1 | E6: 1 | I6: Spacer (8 mm) | J6: =VLOOKUP(Stroke_adjustment,Adjustment,5) -> 1
A7: -5 | B7: 0 | C7: 0 | D7: 1 | E7: 1
A8: -4 | B8: 1 | C8: 1 | D8: 0 | E8: 1
A9: -3 | B9: 0 | C9: 1 | D9: 0 | E9: 1
A10: -2 | B10: 1 | C10: 0 | D10: 0 | E10: 1
A11: -1 | B11: 0 | C11: 0 | D11: 0 | E11: 1
A12: 0 | B12: 1 | C12: 1 | D12: 1 | E12: 0
A13: 1 | B13: 0 | C13: 1 | D13: 1 | E13: 0
A14: 2 | B14: 1 | C14: 0 | D14: 1 | E14: 0
A15: 3 | B15: 0 | C15: 0 | D15: 1 | E15: 0
A16: 4 | B16: 1 | C16: 1 | D16: 0 | E16: 0
A17: 5 | B17: 0 | C17: 1 | D17: 0 | E17: 0
A18: 6 | B18: 1 | C18: 0 | D18: 0 | E18: 0
A19: 7 | B19: 0 | C19: 0 | D19: 0 | E19: 0

Sheet Heat_Factor (hidden)
D2: Max Heat factors from Catalogue (150 bar) | J2: Max Heat Factors for User_Used Charge pressue
C3: Max Heatfactor without cooling catalogue | E3: Max Heatfactor without cooling OBS k och m ska tas från Figurer nedan | F3: Liquid Cooling | G3: Nitro Cooler | I3: Force_Size | J3: Max Heatfactor without cooling | K3: Liquid Cooling | L3: Nitro Cooler
C4: 380 | D4: 1500 | E4: =-0.2669*User_Used_Stroke_Length+422.71 -> 421.3755 | F4: =2000*Temperature_Reducing_Factor -> 2142.857143 | G4: =3200*Temperature_Reducing_Factor -> 3428.571429 | H4: mm/min | I4: =D4 -> 1500 | J4: =E4/$E$12 -> 421.3755 | K4: 2142.857143 | L4: 3428.571429 | M4: mm/min
C5: 320 | D5: 3000 | E5: =-0.94*User_Used_Stroke_Length+374.02 -> 369.32 | F5: =1200*Temperature_Reducing_Factor -> 1285.714286 | G5: =2100*Temperature_Reducing_Factor -> 2250 | H5: mm/min | I5: =D5 -> 3000 | J5: 369.32 | K5: 1285.714286 | L5: 2250 | M5: mm/min
C6: 300 | D6: 5000 | E6: =-0.8882*User_Used_Stroke_Length+328.82 -> 324.379 | F6: =1100*Temperature_Reducing_Factor -> 1178.571429 | G6: =1500*Temperature_Reducing_Factor -> 1607.142857 | H6: mm/min | I6: 5000 | J6: 324.379 | K6: 1178.571429 | L6: 1607.142857 | M6: mm/min
C7: 280 | D7: 7500 | E7: =-0.8882*User_Used_Stroke_Length+308.82 -> 304.379 | F7: =1000*Temperature_Reducing_Factor -> 1071.428571 | G7: =1200*Temperature_Reducing_Factor -> 1285.714286 | H7: mm/min | I7: 7500 | J7: 304.379 | K7: 1071.428571 | L7: 1285.714286 | M7: mm/min
E8: Stroke Length depenende Heta Factor 2019-09-02 | F8: 2019-09-02 Temp reducing
Q9: =IF(Q4=1,"Liquid Cooler",IF(Q5=0,"","Nitro Cooler")) -> 
S10: =IF(Q4=1,"Nitro Cooler","") -> 
L11: Heat Data
D12: Charging Pressure Utilisation | E12: =User_Charge_Pressure/150 -> 1 | F12: (-) | L12: Heat Factor | M12: =User_Strokes_per_Minute*User_Used_Stroke_Length -> 50 | N12: [mm/min]
D13: Work / Stroke at 20 C | E13: =Total_Work_20 -> 90.29962929 | F13: Nm | L13: Total Power | M13: =E20/1000 -> 0.01813183683 | N13: kW
D14: Work / Stroke at 80 C | E14: =Total_Work_80 -> 108.791021 | F14: Nm
D15: Seconds per stroke | E15: =60/User_Strokes_per_Minute -> 6 | H15: Code | I15: Flag | J15: Code*Flag | K15: Rang | M15: Max Heat Factor [mm/min] | N15: Max Power kW | O15: Utilisation | V15: Cell-länk ListBox_Cooling
H16: 1 | I16: =IF(Heat_Factor<=$M16,1,0) -> 1 | J16: =IF(I16=0," ",H16*I16) -> 1 | K16: =IF(ISNUMBER(J16),RANK(J16,$J$16:$J$18,1),"") -> 1 | L16: No cooling | M16: =VLOOKUP(Force_Size,Heat_Factor_Matrix,2) -> 421.3755 | N16: =((M16/Heat_Factor)*$E$20)/1000 -> 0.1528062362 | O16: =Heat_Factor/M16 -> 0.1186590108 | P16: =IF(I16=1,"OK","Not OK") -> OK | Q16: =IF(E30=0,"No Cooling Alternative",VLOOKUP(H16,$K$16:$L$18,2,FALSE)) -> No cooling | R16: =IFERROR(Q16," ") -> No cooling | S16: =OFFSET(R15,V16,0,1,1) -> No cooling | V16: 1
H17: 2 | I17: =IF(Heat_Factor<=$M17,1,0) -> 1 | J17: =IF(I17=0," ",H17*I17) -> 2 | K17: =IF(ISNUMBER(J17),RANK(J17,$J$16:$J$18,1),"") -> 2 | L17: Liquid Cooling | M17: =VLOOKUP(Force_Size,Heat_Factor_Matrix,3) -> 2142.857143 | N17: =((M17/Heat_Factor)*$E$20)/1000 -> 0.7770787211 | O17: =Heat_Factor/M17 -> 0.02333333333 | P17: =IF(I17=1,"OK","Not OK") -> OK | Q17: =VLOOKUP(H17,$K$16:$L$18,2,FALSE) -> Liquid Cooling | R17: =IFERROR(Q17," ") -> Liquid Cooling
H18: 3 | I18: =IF(AND(Heat_Factor<$M18,Ext_Cooling_per_spring<=1.5),1,0) -> 1 | J18: =IF(I18=0," ",H18*I18) -> 3 | K18: =IF(ISNUMBER(J18),RANK(J18,$J$16:$J$18,1),"") -> 3 | L18: Nitro Cooler | M18: =VLOOKUP(Force_Size,Heat_Factor_Matrix,4) -> 3428.571429 | N18: =((M18/Heat_Factor)*$E$20)/1000 -> 1.243325954 | O18: =Heat_Factor/M18 -> 0.01458333333 | P18: =IF(I18=1,"OK","Not OK") -> OK | Q18: Nitro Cooler | R18: Nitro Cooler
D19: Power at 20 C | E19: =E13/Seconds_per_stroke -> 15.04993822 | F19: W [Nm/s]
D20: Power at 80 C | E20: =E14/Seconds_per_stroke -> 18.13183683 | F20: W [Nm/s]
H21: 1 | I21: =I16 -> 1 | J21: =IF(I21=0," ",H21*I21) -> 1 | K21: =IF(ISNUMBER(J21),RANK(J21,$J$21:$J$23,1),"") -> 1 | Q21: =VLOOKUP(H21,$K$21:$L$23,2,FALSE) ->  | R21: =IFERROR(Q21," ") ->  | S21: =OFFSET(R20,V16,0,1,1) -> 
E22: =User_Strokes_per_Minute*User_Used_Stroke_Length -> 50 | H22: 2 | I22: =I17 -> 1 | J22: =IF(I22=0," ",H22*I22) -> 2 | K22: =IF(ISNUMBER(J22),RANK(J22,$J$21:$J$23,1),"") -> 2 | L22: -CJ | Q22: =VLOOKUP(H22,$K$21:$L$23,2,FALSE) -> -CJ | R22: =IFERROR(Q22," ") -> -CJ
H23: 3 | I23: =I18 -> 1 | J23: 3 | K23: =IF(ISNUMBER(J23),RANK(J23,$J$21:$J$23,1),"") -> 3 | L23: -NC | Q23: =VLOOKUP(H23,$K$21:$L$23,2,FALSE) -> -NC | R23: =IFERROR(Q23," ") -> -NC
H26: Surrounding temperature 2019-09-02
L27: Max allowed temperature | N27: 80 | O27: °C
D28: External Cooling need | E28: =Ext_Cooling_Need -> 0 | F28: Kw | L28: Reference temperature | N28: 24 | O28: °C
D29: External cooling per spring | E29: =Ext_Cooling_per_spring -> 0 | F29: kw
D30: Cooling Altenatives | E30: =Cooling_Ant -> 3
D32: Nitro Cooler | E32: =E28/Nitro_Cooler_Capacity -> 0 | F32: Antal | L32: New Heat Data 20190830
E33: =_xlfn.CEILING.PRECISE(E32) -> 0 | F33: Antal Rundat | L33: No cooling | N33: =N16*1000/($N$27-$N$28) -> 2.728682789 | O33: W/°C
E34: =IF(E28=0,"No Nitro Cooler needed",IF(E33>4,CONCATENATE(E33," Nitro Coolers needed. Maximum 4 Nitro Coolers recomended"),IF(E33=1,"One Nitro Cooler needed",CONCATENATE(E33," Nitro Coolers needed")))) -> No Nitro Cooler needed | F34: 2021641 | G34: =E33 -> 0 | L34: Liquid Cooling | N34: =N17*1000/($N$27-$N$28) -> 13.87640573 | O34: W/°C
L35: Nitro Cooler | N35: 22.20224918 | O35: W/°C
D36: Liquid Cooler | E36: =IF(E28=0,"No Liquid Cooler needed",IF(E28<=Liquid_Cooler_10kW_Capacity,"One 10 kW Cooler Unit needed",IF(E28<=Liquid_Cooler_25kW_Capacity,"One 25 kW Cooler Unit needed","Too much Heat generated"))) -> No Liquid Cooler needed | F36: =IF(E28<=10,"CS-CU-10KW",IF(E28<=25,"CS-CU-25KW","")) -> CS-CU-10KW | G36: =IF(E28=0,0,1) -> 0
L37: Temperature Reducing Factor | N37: =($N$27-User_Surrounding_Temperature)/($N$27-$N$28) -> 1.071428571
D38: Nitro Cooler message | E38: =IF(Cooler="-NC",E34,IF(Cooler="-CJ",E36,"")) ->  | F38: =IF(Cooler="-NC",F34,IF(Cooler="-CJ",F36,"")) ->  | G38: =IF(Cooler="-NC",G34,IF(Cooler="-CJ",G36,"")) ->  | L38: Heat Data reduced
E39: =IF(Cooler="-NC","Nitro Cooler",IF(Cooler="-CJ","Liquid Cooler Unit","No Cooler")) -> No Cooler | L39: Heat Factor | M39: =Heat_Factor -> 50 | N39: mm/min
L40: Total Power | M40: =Total_Power -> 0.01813183683 | N40: kW
H42: Code | I42: Flag | J42: Code*Flag | K42: Rang | M42: Max Heat Factor mm/min | N42: Max Power kW | O42: Utilisation
H43: 1 | I43: =IF(Heat_Factor<=$M43,1,0) -> 1 | J43: =IF(I43=0," ",H43*I43) -> 1 | K43: =IF(ISNUMBER(J43),RANK(J43,$J$43:$J$45,1),"") -> 1 | L43: No cooling | M43: =M16*Temperature_Reducing_Factor -> 451.47375 | N43: 0.1637209673 | O43: =Heat_Factor/M43 -> 0.1107484101 | P43: =IF(I43=1,"OK","Not OK") -> OK | S43: =IF(E30=0,"No Cooling Alternative",VLOOKUP(H43,$K$43:$L$45,2,FALSE)) -> No cooling | T43: =IFERROR(S43," ") -> No cooling | U43: =OFFSET(T42,V16,0,1,1) -> No cooling
H44: 2 | I44: =IF(Heat_Factor<=$M44,1,0) -> 1 | J44: =IF(I44=0," ",H44*I44) -> 2 | K44: =IF(ISNUMBER(J44),RANK(J44,$J$43:$J$45,1),"") -> 2 | L44: Liquid cooling | M44: 2295.918367 | N44: 0.8325843441 | O44: =Heat_Factor/M44 -> 0.02177777778 | P44: =IF(I44=1,"OK","Not OK") -> OK | S44: =VLOOKUP(H44,$K$43:$L$45,2,FALSE) -> Liquid cooling | T44: =IFERROR(S44," ") -> Liquid cooling
H45: 3 | I45: =IF(AND(Heat_Factor<$M45,Ext_Cooling_per_spring<=Nitro_Cooler_Capacity),1,0) -> 1 | J45: =IF(I45=0," ",H45*I45) -> 3 | K45: =IF(ISNUMBER(J45),RANK(J45,$J$43:$J$45,1),"") -> 3 | L45: Nitro Cooler | M45: 3673.469388 | N45: 1.332134951 | O45: =Heat_Factor/M45 -> 0.01361111111 | P45: =IF(I45=1,"OK","Not OK") -> OK | S45: =VLOOKUP(H45,$K$43:$L$45,2,FALSE) -> Nitro Cooler | T45: Nitro Cooler
C47: Nytt 190903 | D47: Nitro Cooler Capacity | E47: =1.5*Temperature_Reducing_Factor -> 1.607142857
D48: Liquid Cooler 10kW Capacity | E48: =10*Temperature_Reducing_Factor -> 10.71428571 | H48: 1 | I48: =I43 -> 1 | J48: =IF(I48=0," ",H48*I48) -> 1 | K48: =IF(ISNUMBER(J48),RANK(J48,$J$48:$J$50,1),"") -> 1 | Q48: =VLOOKUP(H48,$K$48:$L$50,2,FALSE) -> 0 | R48: =IFERROR(Q48," ") -> 0 | S48: =OFFSET(R47,V16,0,1,1) -> 0
D49: Liquid Cooler 25kW Capacity | E49: =25*Temperature_Reducing_Factor -> 26.78571429 | H49: 2 | I49: =I44 -> 1 | J49: =IF(I49=0," ",H49*I49) -> 2 | K49: =IF(ISNUMBER(J49),RANK(J49,$J$48:$J$50,1),"") -> 2 | L49: -CJ | Q49: =VLOOKUP(H49,$K$48:$L$50,2,FALSE) -> -CJ | R49: =IFERROR(Q49," ") -> -CJ
H50: 3 | I50: =I45 -> 1 | J50: 3 | K50: =IF(ISNUMBER(J50),RANK(J50,$J$48:$J$50,1),"") -> 3 | L50: -NC | Q50: =VLOOKUP(H50,$K$48:$L$50,2,FALSE) -> -NC | R50: -NC
F81: Stroke | G81: KF1500 | H81: KF3000 | I81: KF5000 | J81: KF7500
F82: 0 | G82: 423 | H82: 374 | I82: 329 | J82: 309
F83: 10 | G83: 420 | H83: 365 | I83: 320 | J83: 300
F84: 20 | G84: 417 | H84: 355 | I84: 311 | J84: 291
F85: 30 | G85: 415 | H85: 346 | I85: 302 | J85: 282
F86: 40 | G86: 412 | H86: 336 | I86: 293 | J86: 273
F87: 50 | G87: 409 | H87: 327 | I87: 284 | J87: 264
F88: 60 | G88: 407 | H88: 318 | I88: 276 | J88: 256
F89: 70 | G89: 404 | H89: 308 | I89: 267 | J89: 247
F90: 80 | G90: 401 | H90: 299 | I90: 258 | J90: 238
F91: 90 | G91: 399 | H91: 289 | I91: 249 | J91: 229
F92: 100 | G92: 396 | H92: 280 | I92: 240 | J92: 220
F93: 110 | G93: 393 | H93: 271 | I93: 231 | J93: 211
F94: 120 | G94: 391 | H94: 261 | I94: 222 | J94: 202
F95: 130 | G95: 388 | H95: 252 | I95: 213 | J95: 193
F96: 140 | G96: 385 | H96: 242 | I96: 204 | J96: 184
F97: 150 | G97: 383 | H97: 233 | I97: 196 | J97: 176
F98: 160 | G98: 380 | H98: 224 | I98: 187 | J98: 167

Sheet Fjäderkurva (hidden)
C1: Ändring
C2: 2016-06-07
E7: Input från annan flik | L7: Virtuell slagvolym
C9: Fi | D9: =Fi -> 15000 | E9: N | F9: Initialkraft vid 20 °C | L9: Kurva | Q9: Iso t kraft per fj
C10: Fs | D10: =Fs -> 22000 | E10: N | F10: Detta är isoterm kraftökning | M10: Slag (mm) | N10: Virtuell volym | O10: Vi / Vf | P10: (Vi / Vf)^kappa | Q10: kN eller lbf | R10: Isothermal force at 20 °C | S10: Isothermal force at estimated running temperature | T10: Polytrop kraft per fjäder | U10: Polytropic force at 20 °C | V10: Polytropic force at estimated running temperature | AA10: Driftstemperatur | AG10: Isothermal force at 20 °C | AH10: Isothermal force at estimated running temperature
C11: slagl | D11: =User_Used_Stroke_Length -> 5 | E11: mm | L11: 0 | M11: =L11*$D$14 -> 0 | N11: =$D$26-M11 -> 15.71428571 | O11: =$D$26/N11 -> 1 | P11: =O11^$D$35 -> 1 | Q11: =$D$45*O11 -> 15 | R11: =Q11*$D$15 -> 15 | S11: =R11*$AA$17 -> 18.07167235 | T11: =$D$45*P11 -> 15 | U11: =$D$15*T11 -> 15 | V11: =U11*$AA$17 -> 18.07167235 | AA11: 80 | AF11: =OFFSET(Q11,0,$C$67) -> 15 | AG11: =OFFSET(R11,0,$C$67) -> 15 | AH11: =OFFSET(S11,0,$C$67) -> 18.07167235
C12: Utnyttjad slagl | D12: =User_Used_Stroke_Length -> 5 | E12: mm | L12: 0.1 | M12: 0.5 | N12: 15.21428571 | O12: 1.03286385 | P12: 1.046309837 | Q12: 15.49295775 | R12: 15.49295775 | S12: 18.66557708 | T12: 15.69464755 | U12: 15.69464755 | V12: =U12*$AA$17 -> 18.90856855 | AA12: 80 | AF12: =OFFSET(Q12,0,$C$67) -> 15.49295775 | AG12: =OFFSET(R12,0,$C$67) -> 15.49295775 | AH12: 18.66557708 | AJ12: =AVERAGE(AG11:AG12)*(M12-M11) -> 7.623239437 | AK12: =(AVERAGE(AH11:AH12)*(M12-M11)) -> 9.184312359
C13: Använd slaglängd ev reducerad till max | D13: =User_Used_Stroke_Length -> 5 | E13: mm | L13: 0.2 | M13: 1 | N13: 14.71428571 | O13: 1.067961165 | P13: 1.096421756 | Q13: 16.01941748 | R13: 16.01941748 | S13: 19.29984426 | T13: 16.44632634 | U13: 16.44632634 | V13: 19.81417474 | AA13: Medel | AF13: 16.01941748 | AG13: 16.01941748 | AH13: 19.29984426 | AJ13: =AVERAGE(AG12:AG13)*(M13-M12) -> 7.878093806 | AK13: =(AVERAGE(AH12:AH13)*(M13-M12)) -> 9.491355336
C14: utnyttjad slagl mm | D14: =User_Used_Stroke_Length -> 5 | E14: mm | L14: 0.3 | M14: 1.5 | N14: 14.21428571 | O14: 1.105527638 | P14: 1.150793622 | Q14: 16.58291457 | R14: 16.58291457 | S14: 19.97873326 | T14: 17.26190433 | U14: 17.26190433 | V14: 20.79676528 | AA14: =IFERROR((AA11+AA12)*0.5,20) -> 80 | AF14: 16.58291457 | AG14: 16.58291457 | AH14: 19.97873326 | AJ14: 8.150583012 | AK14: 9.81964438
C15: Antal fjädrar | D15: =User_Number_of_Springs -> 1 | E15: st | L15: 0.4 | M15: 2 | N15: 13.71428571 | O15: 1.145833333 | P15: 1.209957269 | Q15: 17.1875 | R15: 17.1875 | S15: 20.70712457 | T15: 18.14935903 | U15: 18.14935903 | V15: 21.86595133 | AF15: 17.1875 | AG15: 17.1875 | AH15: 20.70712457 | AJ15: 8.442603643 | AK15: 10.17146446
C16: Status tryckenhet | D16: 1 | E16: bar | L16: 0.5 | M16: 2.5 | N16: 13.21428571 | O16: 1.189189189 | P16: 1.27453373 | Q16: 17.83783784 | R16: 17.83783784 | S16: 21.4906374 | T16: 19.11800595 | U16: 19.11800595 | V16: 23.03295597 | AA16: ktemp (273+T)/(237+20) | AF16: 17.83783784 | AG16: 17.83783784 | AH16: 21.4906374 | AJ16: 8.756334459 | AK16: 10.54944049
C17: Status kraftenhet | D17: 1 | E17: kN | L17: 0.6 | M17: 3 | N17: 12.71428571 | O17: 1.235955056 | P17: 1.345252321 | Q17: 18.53932584 | R17: 18.53932584 | S17: 22.33577482 | T17: 20.17878481 | U17: 20.17878481 | V17: 24.31095917 | AA17: =(273+AA14)/(273+20) -> 1.204778157 | AF17: 18.53932584 | AG17: 18.53932584 | AH17: 22.33577482 | AJ17: 9.09429092 | AK17: 10.95660305
C18: tryck från control | D18: =User_Charge_Pressure -> 150 | L18: 0.7 | M18: 3.5 | N18: 12.21428571 | O18: 1.286549708 | P18: 1.422974766 | Q18: 19.29824561 | R18: 19.29824561 | S18: 23.25010478 | T18: 21.34462149 | U18: 21.34462149 | V18: 25.71553374 | AF18: 19.29824561 | AG18: 19.29824561 | AH18: 23.25010478 | AJ18: 9.459392864 | AK18: 11.3964699
C19: ger i bar | D19: =D18/D16 -> 150 | E19: bar | L19: 0.8 | M19: 4 | N19: 11.71428571 | O19: 1.341463415 | P19: 1.50872597 | Q19: 20.12195122 | R19: 20.12195122 | S19: 24.24248731 | T19: 22.63088954 | U19: 22.63088954 | V19: 27.2652014 | AF19: 20.12195122 | AG19: 20.12195122 | AH19: 24.24248731 | AJ19: 9.855049208 | AK19: 11.87314802
C20: Fjädertryck ur tabell | D20: 150 | E20: bar | L20: 0.9 | M20: 4.5 | N20: 11.21428571 | O20: 1.401273885 | P20: 1.603733643 | Q20: 21.01910828 | R20: 21.01910828 | S20: 25.32336254 | T20: 24.05600464 | U20: 24.05600464 | V20: 28.98214893 | AF20: 21.01910828 | AG20: 21.01910828 | AH20: 25.32336254 | AJ20: 10.28526487 | AK20: 12.39146246
L21: 1 | M21: 5 | N21: 10.71428571 | O21: 1.466666667 | P21: 1.709479867 | Q21: 22 | R21: 22 | S21: 26.50511945 | T21: 25.64219801 | U21: 25.64219801 | V21: 30.89316006 | AF21: 22 | AG21: 22 | AH21: 26.50511945 | AJ21: 10.75477707 | AK21: 12.9571205
C22: Isotermt är Vi/Vf=(Ff/Fi) | H22: Vi/Vf = (Ff/Fi)^(1/1,4)
AH23: =AVERAGE(AH11:AH21) -> 21.80640344 | AI23: Total Work | AJ23: =SUM(AJ12:AJ21) -> 90.29962929 | AK23: =SUM(AK12:AK21) -> 108.791021 | AL23: [Nm]
C24: Ff/Fi = Vi/Vf = k | D24: =D10/D9 -> 1.466666667
C26: l = k*s / (k-1) | D26: =(D24*D11)/(D24-1) -> 15.71428571 | E26: mm | F26: Virtuell volym, Viv
D28: =D26-D11 -> 10.71428571 | E28: mm | F28: Virtuell slutvolym, Vfv
C30: Slutvolym, utnyttjad slagl | D30: =D26-D14 -> 10.71428571 | E30: mm | F30: Virtuell slutvolym för utnyttjad slagl, Vfvny
C32: nytt Viny / Vfny | D32: =D26/D30 -> 1.466666667
C35: kappa | D35: 1.4
C36: kraft och tryckfaktor (Viny / Vfny)^kappa | D36: =D32^D35 -> 1.709479867 | E36: Detta ska tas multiplicerat med Fi eller Pi
D38: =D9*D36 -> 25642.19801
C42: ger sluttryck | D42: =D19*D36 -> 256.4219801
C44: Fyllutnyttande | D44: =D19/D20 -> 1
C45: Ger initialkraft | D45: =D44*D9*0.001*D17 -> 15 | E45: =E17 -> kN
C46: Ger initailalkraft totalt | D46: =$AH$11 -> 18.07167235 | E46: =E17 -> kN
C47: ger slutkraft per fjäder | D47: =D9*D32*D44*0.001*D17 -> 22 | E47: Isotermt
C48: Ger slutkraft totalt | D48: =$AH$21 -> 26.50511945
C49: Utnyttjad slaglängd
C51: Felmeddelande om för lång slaglängd | D51: =IF(D12>D11,"Used stroke length is more than 100%!","") -> 
E56: Utput till annan flik
D65: Polytrop kurva | E65: Förskjutning för polytropa värden
C66: 1 | D66: Isothermal | E66: 0
C67: =INDEX(E66:E67,C66) -> 0 | D67: Polytropic | E67: 3

Sheet Excenterpress (hidden)
F3: Impact | G3: tid (s) | H3: Part of stroke | I3: Alfa | K3: stroke (mm) | L3: Locked Spring | O3: return | Q3: v
A4: Excenter Stroke | B4: =Excenter_Stroke -> 500 | C4: mm | F4: =IF(M4<User_Used_Stroke_Length,1,0) -> 0 | G4: =H4*$G$84 -> 0 | H4: 0 | I4: =H4*2*PI() -> 0 | J4: =crank_radius*COS(I4)+SQRT(rod_length^2-crank_radius^2*SIN(I4)^2) -> 650 | K4: =J4-$B$11 -> 500 | L4: =IF(AND(G4>0.5*Period_time,G4<0.5*Period_time+Locked_Spring),Spring_Back,-10) -> -10 | M4: =IF(K4>=User_Used_Stroke_Length,User_Used_Stroke_Length,K4) -> 5 | N4: =IF(G4<=0.5*Period_time,M4,-10) -> 5 | O4: =Return_Speed*1000*G4-Return_Speed*1000*(0.5*Period_time+Locked_Spring) -> -800 | P4: =IF(O4>User_Used_Stroke_Length,User_Used_Stroke_Length,O4) -> -800
A5: r crank_radius | B5: =Excenter_Stroke/2 -> 250 | F5: 0 | G5: 0.075 | H5: 0.0125 | I5: =H5*2*PI() -> 0.07853981634 | J5: 648.7481198 | K5: =J5-$B$11 -> 498.7481198 | L5: -10 | M5: 5 | N5: 5 | O5: -785 | P5: -785 | Q5: =SLOPE(K4:K6,G4:G6) -> -33.29573759 | R5: =Q5/1000 -> -0.03329573759
A6: l rod_length | B6: =rod_length -> 400 | C6: mm | F6: 0 | G6: 0.15 | H6: 0.025 | I6: 0.1570796327 | J6: 645.0056394 | K6: 495.0056394 | L6: -10 | M6: 5 | N6: 5 | O6: -770 | P6: -770 | Q6: =SLOPE(K5:K7,G5:G7) -> -66.24066838 | R6: =Q6/1000 -> -0.06624066838
F7: 0 | G7: 0.225 | H7: 0.0375 | I7: 0.235619449 | J7: 638.8120195 | K7: 488.8120195 | L7: -10 | M7: 5 | N7: 5 | O7: -755 | P7: -755 | Q7: -98.48454754 | R7: -0.09848454754
A8: Period tid | B8: =60/User_Strokes_per_Minute -> 6 | F8: 0 | G8: 0.3 | H8: 0.05 | I8: 0.3141592654 | J8: 630.2329572 | K8: 480.2329572 | L8: -10 | M8: 5 | N8: 5 | O8: -740 | P8: -740 | Q8: -129.6783791 | R8: -0.1296783791
F9: 0 | G9: 0.375 | H9: 0.0625 | I9: 0.3926990817 | J9: 619.3602627 | K9: 469.3602627 | L9: -10 | M9: 5 | N9: 5 | O9: -725 | P9: -725 | Q9: -159.4753729 | R9: -0.1594753729
F10: 0 | G10: 0.45 | H10: 0.075 | I10: 0.471238898 | J10: 606.3116513 | K10: 456.3116513 | L10: -10 | M10: 5 | N10: 5 | O10: -710 | P10: -710 | Q10: -187.5323575 | R10: -0.1875323575
B11: =MIN(J4:J44) -> 150 | F11: 0 | G11: 0.525 | H11: 0.0875 | I11: 0.5497787144 | J11: 591.230409 | K11: 441.230409 | L11: -10 | M11: 5 | N11: 5 | O11: -695 | P11: -695 | Q11: -213.5118949 | R11: -0.2135118949
F12: 0 | G12: 0.6 | H12: 0.1 | I12: 0.6283185307 | J12: 574.2848671 | K12: 424.2848671 | L12: -10 | M12: 5 | N12: 5 | O12: -680 | P12: -680 | Q12: -237.0854184 | R12: -0.2370854184
A13: slaglängd | B13: =User_Used_Stroke_Length -> 5 | F13: 0 | G13: 0.675 | H13: 0.1125 | I13: 0.7068583471 | J13: 555.6675963 | K13: 405.6675963 | L13: -10 | M13: 5 | N13: 5 | O13: -665 | P13: -665 | Q13: -257.937796 | R13: -0.257937796
A14: Returnspeed | B14: =Return_Speed -> 0.2 | F14: 0 | G14: 0.75 | H14: 0.125 | I14: 0.7853981634 | J14: 535.5941977 | K14: 385.5941977 | L14: -10 | M14: 5 | N14: 5 | O14: -650 | P14: -650 | Q14: -275.7737875 | R14: -0.2757737875
A15: Returtid | B15: =Returtid -> 0.025 | F15: 0 | G15: 0.825 | H15: 0.1375 | I15: 0.8639379797 | J15: 514.3015281 | K15: 364.3015281 | L15: -10 | M15: 5 | N15: 5 | O15: -635 | P15: -635 | Q15: -290.3268716 | R15: -0.2903268716
F16: 0 | G16: 0.9 | H16: 0.15 | I16: 0.9424777961 | J16: 492.0451669 | K16: 342.0451669 | L16: -10 | M16: 5 | N16: 5 | O16: -620 | P16: -620 | Q16: -301.3708165 | R16: -0.3013708165
F17: 0 | G17: 0.975 | H17: 0.1625 | I17: 1.021017612 | J17: 469.0959057 | K17: 319.0959057 | L17: -10 | M17: 5 | N17: 5 | O17: -605 | P17: -605 | Q17: -308.7340701 | R17: -0.3087340701
A18: Press velocity at impact | B18: =ABS(ROUND(VLOOKUP(1,F5:R84,13,FALSE),2)) -> 0.03 | F18: 0 | G18: 1.05 | H18: 0.175 | I18: 1.099557429 | J18: 445.7350564 | K18: 295.7350564 | L18: -10 | M18: 5 | N18: 5 | O18: -590 | P18: -590 | Q18: -312.3164778 | R18: -0.3123164778
F19: 0 | G19: 1.125 | H19: 0.1875 | I19: 1.178097245 | J19: 422.248434 | K19: 272.248434 | L19: -10 | M19: 5 | N19: 5 | O19: -575 | P19: -575 | Q19: -312.106974 | R19: -0.312106974
A20: Max Press speed | B20: =ROUND(MAX(R5:R84),2) -> 0.31 | F20: 0 | G20: 1.2 | H20: 0.2 | I20: 1.256637061 | J20: 398.9190103 | K20: 248.9190103 | L20: -10 | M20: 5 | N20: 5 | O20: -560 | P20: -560 | Q20: -308.1998178 | R20: -0.3081998178
F21: 0 | G21: 1.275 | H21: 0.2125 | I21: 1.335176878 | J21: 376.0184613 | K21: 226.0184613 | L21: -10 | M21: 5 | N21: 5 | O21: -545 | P21: -545 | Q21: -300.8059343 | R21: -0.3008059343
F22: 0 | G22: 1.35 | H22: 0.225 | I22: 1.413716694 | J22: 353.7981202 | K22: 203.7981202 | L22: -10 | M22: 5 | N22: 5 | O22: -530 | P22: -530 | Q22: -290.2554535 | R22: -0.2902554535
F23: 0 | G23: 1.425 | H23: 0.2375 | I23: 1.49225651 | J23: 332.4801433 | K23: 182.4801433 | L23: -10 | M23: 5 | N23: 5 | O23: -515 | P23: -515 | Q23: -276.9881349 | R23: -0.2769881349
F24: 0 | G24: 1.5 | H24: 0.25 | I24: 1.570796327 | J24: 312.2498999 | K24: 162.2498999 | L24: -10 | M24: 5 | N24: 5 | O24: -500 | P24: -500 | Q24: -261.5303191 | R24: -0.2615303191
F25: 0 | G25: 1.575 | H25: 0.2625 | I25: 1.649336143 | J25: 293.2505954 | K25: 143.2505954 | L25: -10 | M25: 5 | N25: 5 | O25: -485 | P25: -485 | Q25: -244.4600819 | R25: -0.2444600819
F26: 0 | G26: 1.65 | H26: 0.275 | I26: 1.727875959 | J26: 275.5808876 | K26: 125.5808876 | L26: -10 | M26: 5 | N26: 5 | O26: -470 | P26: -470 | Q26: -226.3654403 | R26: -0.2263654403
F27: 0 | G27: 1.725 | H27: 0.2875 | I27: 1.806415776 | J27: 259.2957794 | K27: 109.2957794 | L27: -10 | M27: 5 | N27: 5 | O27: -455 | P27: -455 | Q27: -207.8024968 | R27: -0.2078024968
F28: 0 | G28: 1.8 | H28: 0.3 | I28: 1.884955592 | J28: 244.4105131 | K28: 94.41051312 | L28: -10 | M28: 5 | N28: 5 | O28: -440 | P28: -440 | Q28: -189.2604105 | R28: -0.1892604105
F29: 0 | G29: 1.875 | H29: 0.3125 | I29: 1.963495408 | J29: 230.9067178 | K29: 80.90671782 | L29: -10 | M29: 5 | N29: 5 | O29: -425 | P29: -425 | Q29: -171.1380439 | R29: -0.1711380439
F30: 0 | G30: 1.95 | H30: 0.325 | I30: 2.042035225 | J30: 218.7398065 | K30: 68.73980653 | L30: -10 | M30: 5 | N30: 5 | O30: -410 | P30: -410 | Q30: -153.7339634 | R30: -0.1537339634
F31: 0 | G31: 2.025 | H31: 0.3375 | I31: 2.120575041 | J31: 207.8466233 | K31: 57.84662331 | L31: -10 | M31: 5 | N31: 5 | O31: -395 | P31: -395 | Q31: -137.2484384 | R31: -0.1372484384
F32: 0 | G32: 2.1 | H32: 0.35 | I32: 2.199114858 | J32: 198.1525408 | K32: 48.15254077 | L32: -10 | M32: 5 | N32: 5 | O32: -380 | P32: -380 | Q32: -121.7941288 | R32: -0.1217941288
F33: 0 | G33: 2.175 | H33: 0.3625 | I33: 2.277654674 | J33: 189.577504 | K33: 39.57750398 | L33: -10 | M33: 5 | N33: 5 | O33: -365 | P33: -365 | Q33: -107.4115581 | R33: -0.1074115581
F34: 0 | G34: 2.25 | H34: 0.375 | I34: 2.35619449 | J34: 182.0408071 | K34: 32.04080706 | L34: -10 | M34: 5 | N34: 5 | O34: -350 | P34: -350 | Q34: -94.08593672 | R34: -0.09408593672
F35: 0 | G35: 2.325 | H35: 0.3875 | I35: 2.434734307 | J35: 175.4646135 | K35: 25.46461347 | L35: -10 | M35: 5 | N35: 5 | O35: -335 | P35: -335 | Q35: -81.76291463 | R35: -0.08176291463
F36: =IF(M36<User_Used_Stroke_Length,1,0) -> 0 | G36: 2.4 | H36: 0.4 | I36: 2.513274123 | J36: =crank_radius*COS(I36)+SQRT(rod_length^2-crank_radius^2*SIN(I36)^2) -> 169.7763699 | K36: 19.77636987 | L36: =IF(AND(G36>0.5*Period_time,G36<0.5*Period_time+Locked_Spring),Spring_Back,-10) -> -10 | M36: =IF(K36>=User_Used_Stroke_Length,User_Used_Stroke_Length,K36) -> 5 | N36: =IF(G36<=0.5*Period_time,M36,-10) -> 5 | O36: =Return_Speed*1000*G36-Return_Speed*1000*(0.5*Period_time+Locked_Spring) -> -320 | P36: =IF(O36>User_Used_Stroke_Length,User_Used_Stroke_Length,O36) -> -320 | Q36: -70.36191079 | R36: -0.07036191079
F37: 0 | G37: 2.475 | H37: 0.4125 | I37: 2.591813939 | J37: 164.9103269 | K37: 14.91032685 | L37: -10 | M37: 5 | N37: 5 | O37: -305 | P37: -305 | Q37: -59.78653778 | R37: -0.05978653778
F38: 0 | G38: 2.55 | H38: 0.425 | I38: 2.670353756 | J38: 160.8083892 | K38: 10.8083892 | L38: -10 | M38: 5 | N38: 5 | O38: -290 | P38: -290 | Q38: -49.93220301 | R38: -0.04993220301
F39: 0 | G39: 2.625 | H39: 0.4375 | I39: 2.748893572 | J39: 157.4204964 | K39: 7.420496403 | L39: -10 | M39: 5 | N39: 5 | O39: -275 | P39: -275 | Q39: -40.69126747 | R39: -0.04069126747
F40: 1 | G40: 2.7 | H40: 0.45 | I40: 2.827433388 | J40: 154.7046991 | K40: 4.704699082 | L40: -10 | M40: 4.704699082 | N40: 4.704699082 | O40: -260 | P40: -260 | Q40: -31.9562472 | R40: -0.0319562472
F41: 1 | G41: 2.775 | H41: 0.4625 | I41: 2.905973205 | J41: 152.6270593 | K41: 2.627059323 | L41: -10 | M41: 2.627059323 | N41: 2.627059323 | O41: -245 | P41: -245 | Q41: -23.62153346 | R41: -0.02362153346
F42: 1 | G42: 2.85 | H42: 0.475 | I42: 2.984513021 | J42: 151.1614691 | K42: 1.161469063 | L42: -10 | M42: 1.161469063 | N42: 1.161469063 | O42: -230 | P42: -230 | Q42: -15.58404274 | R42: -0.01558404274
F43: 1 | G43: 2.925 | H43: 0.4875 | I43: 3.063052837 | J43: 150.2894529 | K43: 0.289452913 | L43: -10 | M43: 0.289452913 | N43: 0.289452913 | O43: -215 | P43: -215 | Q43: -7.743127089 | R43: -0.007743127089
F44: 1 | G44: =H44*$G$84 -> 3 | H44: 0.5 | I44: 3.141592654 | J44: 150 | K44: 0 | L44: -10 | M44: 0 | N44: 0 | O44: -200 | P44: -200 | Q44: -1.932867446e-13 | R44: -1.932867446e-16
F45: 1 | G45: 3.075 | H45: 0.5125 | I45: 3.22013247 | J45: 150.2894529 | K45: 0.289452913 | M45: 0.289452913 | N45: -10 | O45: -185 | P45: -185 | Q45: 7.743127089 | R45: 0.007743127089
F46: 1 | G46: 3.15 | H46: 0.525 | I46: 3.298672286 | J46: 151.1614691 | K46: 1.161469063 | M46: 1.161469063 | N46: -10 | O46: -170 | P46: -170 | Q46: 15.58404274 | R46: 0.01558404274
F47: 1 | G47: 3.225 | H47: 0.5375 | I47: 3.377212103 | J47: 152.6270593 | K47: 2.627059323 | M47: 2.627059323 | N47: -10 | O47: -155 | P47: -155 | Q47: 23.62153346 | R47: 0.02362153346
F48: 1 | G48: 3.3 | H48: 0.55 | I48: 3.455751919 | J48: 154.7046991 | K48: 4.704699082 | M48: 4.704699082 | N48: -10 | O48: -140 | P48: -140 | Q48: 31.9562472 | R48: 0.0319562472
F49: 0 | G49: 3.375 | H49: 0.5625 | I49: 3.534291735 | J49: 157.4204964 | K49: 7.420496403 | M49: 5 | N49: -10 | O49: -125 | P49: -125 | Q49: 40.69126747 | R49: 0.04069126747
F50: 0 | G50: 3.45 | H50: 0.575 | I50: 3.612831552 | J50: 160.8083892 | K50: 10.8083892 | M50: 5 | N50: -10 | O50: -110 | P50: -110 | Q50: 49.93220301 | R50: 0.04993220301
F51: 0 | G51: 3.525 | H51: 0.5875 | I51: 3.691371368 | J51: 164.9103269 | K51: 14.91032685 | M51: 5 | N51: -10 | O51: -95 | P51: -95 | Q51: 59.78653778 | R51: 0.05978653778
F52: 0 | G52: 3.6 | H52: 0.6 | I52: 3.769911184 | J52: 169.7763699 | K52: 19.77636987 | M52: 5 | N52: -10 | O52: -80 | P52: -80 | Q52: 70.36191079 | R52: 0.07036191079
F53: 0 | G53: 3.675 | H53: 0.6125 | I53: 3.848451001 | J53: 175.4646135 | K53: 25.46461347 | M53: 5 | N53: -10 | O53: -65 | P53: -65 | Q53: 81.76291463 | R53: 0.08176291463
F54: 0 | G54: 3.75 | H54: 0.625 | I54: 3.926990817 | J54: 182.0408071 | K54: 32.04080706 | M54: 5 | N54: -10 | O54: -50 | P54: -50 | Q54: 94.08593672 | R54: 0.09408593672
F55: 0 | G55: 3.825 | H55: 0.6375 | I55: 4.005530633 | J55: 189.577504 | K55: 39.57750398 | M55: 5 | N55: -10 | O55: -35 | P55: -35 | Q55: 107.4115581 | R55: 0.1074115581
F56: 0 | G56: 3.9 | H56: 0.65 | I56: 4.08407045 | J56: 198.1525408 | K56: 48.15254077 | M56: 5 | N56: -10 | O56: -20 | P56: -20 | Q56: 121.7941288 | R56: 0.1217941288
F57: 0 | G57: 3.975 | H57: 0.6625 | I57: 4.162610266 | J57: 207.8466233 | K57: 57.84662331 | M57: 5 | N57: -10 | O57: -5 | P57: -5 | Q57: 137.2484384 | R57: 0.1372484384
F58: 0 | G58: 4.05 | H58: 0.675 | I58: 4.241150082 | J58: 218.7398065 | K58: 68.73980653 | L58: -10 | M58: 5 | N58: -10 | O58: 10 | P58: 5 | Q58: 153.7339634 | R58: 0.1537339634
F59: 0 | G59: 4.125 | H59: 0.6875 | I59: 4.319689899 | J59: 230.9067178 | K59: 80.90671782 | L59: -10 | M59: 5 | N59: -10 | O59: 25 | P59: 5 | Q59: 171.1380439 | R59: 0.1711380439
F60: 0 | G60: 4.2 | H60: 0.7 | I60: 4.398229715 | J60: 244.4105131 | K60: 94.41051312 | L60: -10 | M60: 5 | N60: -10 | O60: 40 | P60: 5 | Q60: 189.2604105 | R60: 0.1892604105
F61: 0 | G61: 4.275 | H61: 0.7125 | I61: 4.476769531 | J61: 259.2957794 | K61: 109.2957794 | L61: -10 | M61: 5 | N61: -10 | O61: 55 | P61: 5 | Q61: 207.8024968 | R61: 0.2078024968
F62: 0 | G62: 4.35 | H62: 0.725 | I62: 4.555309348 | J62: 275.5808876 | K62: 125.5808876 | L62: -10 | M62: 5 | N62: -10 | O62: 70 | P62: 5 | Q62: 226.3654403 | R62: 0.2263654403
F63: 0 | G63: 4.425 | H63: 0.7375 | I63: 4.633849164 | J63: 293.2505954 | K63: 143.2505954 | L63: -10 | M63: 5 | N63: -10 | O63: 85 | P63: 5 | Q63: 244.4600819 | R63: 0.2444600819
F64: 0 | G64: 4.5 | H64: 0.75 | I64: 4.71238898 | J64: 312.2498999 | K64: 162.2498999 | L64: -10 | M64: 5 | N64: -10 | O64: 100 | P64: 5 | Q64: 261.5303191 | R64: 0.2615303191
F65: 0 | G65: 4.575 | H65: 0.7625 | I65: 4.790928797 | J65: 332.4801433 | K65: 182.4801433 | L65: -10 | M65: 5 | N65: -10 | O65: 115 | P65: 5 | Q65: 276.9881349 | R65: 0.2769881349
F66: 0 | G66: 4.65 | H66: 0.775 | I66: 4.869468613 | J66: 353.7981202 | K66: 203.7981202 | L66: -10 | M66: 5 | N66: -10 | O66: 130 | P66: 5 | Q66: 290.2554535 | R66: 0.2902554535
F67: 0 | G67: 4.725 | H67: 0.7875 | I67: 4.948008429 | J67: 376.0184613 | K67: 226.0184613 | L67: -10 | M67: 5 | N67: -10 | O67: 145 | P67: 5 | Q67: 300.8059343 | R67: 0.3008059343
F68: =IF(M68<User_Used_Stroke_Length,1,0) -> 0 | G68: 4.8 | H68: 0.8 | I68: 5.026548246 | J68: =crank_radius*COS(I68)+SQRT(rod_length^2-crank_radius^2*SIN(I68)^2) -> 398.9190103 | K68: 248.9190103 | L68: =IF(AND(G68>0.5*Period_time,G68<0.5*Period_time+Locked_Spring),Spring_Back,-10) -> -10 | M68: =IF(K68>=User_Used_Stroke_Length,User_Used_Stroke_Length,K68) -> 5 | N68: =IF(G68<=0.5*Period_time,M68,-10) -> -10 | O68: =Return_Speed*1000*G68-Return_Speed*1000*(0.5*Period_time+Locked_Spring) -> 160 | P68: =IF(O68>User_Used_Stroke_Length,User_Used_Stroke_Length,O68) -> 5 | Q68: 308.1998178 | R68: 0.3081998178
F69: 0 | G69: 4.875 | H69: 0.8125 | I69: =H69*2*PI() -> 5.105088062 | J69: 422.248434 | K69: =J69-$B$11 -> 272.248434 | L69: -10 | M69: 5 | N69: -10 | O69: 175 | P69: 5 | Q69: 312.106974 | R69: 0.312106974
F70: 0 | G70: 4.95 | H70: 0.825 | I70: 5.183627878 | J70: 445.7350564 | K70: 295.7350564 | L70: -10 | M70: 5 | N70: -10 | O70: 190 | P70: 5 | Q70: =SLOPE(K69:K71,G69:G71) -> 312.3164778 | R70: =Q70/1000 -> 0.3123164778
F71: 0 | G71: 5.025 | H71: 0.8375 | I71: 5.262167695 | J71: 469.0959057 | K71: 319.0959057 | L71: -10 | M71: 5 | N71: -10 | O71: 205 | P71: 5 | Q71: 308.7340701 | R71: 0.3087340701
F72: 0 | G72: 5.1 | H72: 0.85 | I72: 5.340707511 | J72: 492.0451669 | K72: 342.0451669 | L72: -10 | M72: 5 | N72: -10 | O72: 220 | P72: 5 | Q72: 301.3708165 | R72: 0.3013708165
F73: 0 | G73: 5.175 | H73: 0.8625 | I73: 5.419247327 | J73: 514.3015281 | K73: 364.3015281 | L73: -10 | M73: 5 | N73: -10 | O73: 235 | P73: 5 | Q73: 290.3268716 | R73: 0.2903268716
F74: 0 | G74: 5.25 | H74: 0.875 | I74: 5.497787144 | J74: 535.5941977 | K74: 385.5941977 | L74: -10 | M74: 5 | N74: -10 | O74: 250 | P74: 5 | Q74: 275.7737875 | R74: 0.2757737875
F75: 0 | G75: 5.325 | H75: 0.8875 | I75: 5.57632696 | J75: 555.6675963 | K75: 405.6675963 | L75: -10 | M75: 5 | N75: -10 | O75: 265 | P75: 5 | Q75: 257.937796 | R75: 0.257937796
F76: 0 | G76: 5.4 | H76: 0.9 | I76: 5.654866776 | J76: 574.2848671 | K76: 424.2848671 | L76: -10 | M76: 5 | N76: -10 | O76: 280 | P76: 5 | Q76: 237.0854184 | R76: 0.2370854184
F77: 0 | G77: 5.475 | H77: 0.9125 | I77: 5.733406593 | J77: 591.230409 | K77: 441.230409 | L77: -10 | M77: 5 | N77: -10 | O77: 295 | P77: 5 | Q77: 213.5118949 | R77: 0.2135118949
F78: 0 | G78: 5.55 | H78: 0.925 | I78: 5.811946409 | J78: 606.3116513 | K78: 456.3116513 | L78: -10 | M78: 5 | N78: -10 | O78: 310 | P78: 5 | Q78: 187.5323575 | R78: 0.1875323575
F79: 0 | G79: 5.625 | H79: 0.9375 | I79: 5.890486225 | J79: 619.3602627 | K79: 469.3602627 | L79: -10 | M79: 5 | N79: -10 | O79: 325 | P79: 5 | Q79: 159.4753729 | R79: 0.1594753729
F80: 0 | G80: 5.7 | H80: 0.95 | I80: 5.969026042 | J80: 630.2329572 | K80: 480.2329572 | L80: -10 | M80: 5 | N80: -10 | O80: 340 | P80: 5 | Q80: 129.6783791 | R80: 0.1296783791
F81: 0 | G81: 5.775 | H81: 0.9625 | I81: 6.047565858 | J81: 638.8120195 | K81: 488.8120195 | L81: -10 | M81: 5 | N81: -10 | O81: 355 | P81: 5 | Q81: 98.48454754 | R81: 0.09848454754
F82: 0 | G82: 5.85 | H82: 0.975 | I82: 6.126105675 | J82: 645.0056394 | K82: 495.0056394 | L82: -10 | M82: 5 | N82: -10 | O82: 370 | P82: 5 | Q82: 66.24066838 | R82: 0.06624066838
F83: 0 | G83: 5.925 | H83: 0.9875 | I83: 6.204645491 | J83: 648.7481198 | K83: 498.7481198 | L83: -10 | M83: 5 | N83: -10 | O83: 385 | P83: 5 | Q83: 33.29573759 | R83: 0.03329573759
F84: 0 | G84: =B8 -> 6 | H84: 1 | I84: 6.283185307 | J84: 650 | K84: 500 | L84: -10 | M84: 5 | N84: -10 | O84: 400 | P84: 5 | Q84: 16.69173627 | R84: 0.01669173627

Sheet Spring_Back (hidden)
T1: vv 100% Olja | U1: =H13/G20 -> 3.052844177
C2: =User_Used_Stroke_Length -> 5 | D2: mm | T2: vv 75% Olja | U2: =(0.75*H13)/G20 -> 2.289633133
C3: =Stroke_margin ->  | D3: mm | T3: vv 50% Olja | U3: =(0.5*H13)/G20 -> 1.526422088
B4: Använt slag | C4: =C2-C3 ->  | D4: mm | T4: vv 25% Olja | U4: =(0.25*H13)/G20 -> 0.7632110442
B7: Dt | C7: Dks | D7: Dksi | E7: Vov | F7: Vne-Voil | G7: Vne | H7: Voil
A8: 1500 | B8: 80 | C8: 36 | D8: 12 | E8: =KF1500VOL_ov(User_Used_Stroke_Length) -> 26412 | F8: =KF1500VOL_ne(User_Used_Stroke_Length)-H8 -> 21282 | G8: =KF1500VOL_ne(User_Used_Stroke_Length) -> 36282 | H8: =KF1500_Oil(User_Used_Stroke_Length) -> 15000 | R8: Del av slag | S8: Använt slag | T8: vv nedre volym utan olja | U8: vv övre volym | V8: Volymkvot | W8: Formel
A9: 3000 | B9: 100 | C9: 50 | D9: 12 | E9: =KF3000VOL_ov(User_Used_Stroke_Length) -> 29248 | F9: =KF3000VOL_ne(User_Used_Stroke_Length)-H9 -> 42571 | G9: =KF3000VOL_ne(User_Used_Stroke_Length) -> 57571 | H9: =KF3000_Oil(User_Used_Stroke_Length) -> 15000 | R9: 0.7 | S9: =User_Used_Stroke_Length*R9 -> 3.5 | T9: =($G$13-S9*$G$20)/$G$20 -> 3.884219495 | U9: =($E$13+S9*$G$19)/$G$19 -> 10.28000058 | V9: =T9/U9 -> 0.3778423422 | W9: =(T9*U9*($G$21^(1/1.4)-1))/(U9+T9*$G$21^(1/1.4)) -> 0.4844572738
A10: 5000 | B10: 125 | C10: 65 | D10: 15 | E10: =KF5000VOL_ov(User_Used_Stroke_Length) -> 101815 | F10: =KF5000VOL_ne(User_Used_Stroke_Length)-H10 -> 72534 | G10: =KF5000VOL_ne(User_Used_Stroke_Length) -> 102534 | H10: =KF5000_Oil(User_Used_Stroke_Length) -> 30000 | R10: 0.71 | S10: 3.55 | T10: =($G$13-S10*$G$20)/$G$20 -> 3.834219495 | U10: =($E$13+S10*$G$19)/$G$19 -> 10.33000058 | V10: =T10/U10 -> 0.3711732122 | W10: 0.4808387216
A11: 7500 | B11: 160 | C11: 80 | D11: 15 | E11: =KF7500VOL_ov(User_Used_Stroke_Length) -> 424997 | F11: =KF7500VOL_ne(User_Used_Stroke_Length)-H11 -> 100311 | G11: =KF7500VOL_ne(User_Used_Stroke_Length) -> 150311 | H11: =KF7500_Oil(User_Used_Stroke_Length) -> 50000 | R11: 0.72 | S11: 3.6 | T11: 3.784219495 | U11: 10.38000058 | V11: 0.3645683319 | W11: 0.4771550365
R12: 0.73 | S12: 3.65 | T12: 3.734219495 | U12: 10.43000058 | V12: 0.3580267775 | W12: 0.4734060997
A13: =Force_Size -> 1500 | B13: =VLOOKUP($A$13,$A$8:$I$11,2) -> 80 | C13: =VLOOKUP($A$13,$A$8:$I$11,3) -> 36 | D13: =VLOOKUP($A$13,$A$8:$I$11,4) -> 12 | E13: =VLOOKUP($A$13,$A$8:$I$11,5) -> 26412 | F13: =VLOOKUP($A$13,$A$8:$I$11,6) -> 21282 | G13: =VLOOKUP($A$13,$A$8:$I$11,7) -> 36282 | H13: =VLOOKUP($A$13,$A$8:$I$11,8) -> 15000 | R13: 0.74 | S13: 3.7 | T13: 3.684219495 | U13: 10.48000058 | V13: 0.3515476424 | W13: 0.4695917921
R14: 0.75 | S14: 3.75 | T14: 3.634219495 | U14: 10.53000058 | V14: 0.3451300377 | W14: 0.4657119944
R15: 0.76 | S15: 3.8 | T15: 3.584219495 | U15: 10.58000058 | V15: 0.3387730908 | W15: 0.461766587
R16: 0.77 | S16: 3.85 | T16: 3.534219495 | U16: 10.63000058 | V16: 0.3324759458 | W16: 0.45775545
R17: 0.78 | S17: 3.9 | T17: 3.484219495 | U17: 10.68000058 | V17: 0.3262377629 | W17: 0.4536784631
R18: 0.79 | S18: 3.95 | T18: 3.434219495 | U18: 10.73000058 | V18: 0.3200577177 | W18: 0.4495355059
F19: Aov | G19: =0.25*PI()*(Dt^2-Dks^2-Dksi^2) -> 3895.57489 | R19: 0.8 | S19: 4 | T19: 3.384219495 | U19: 10.78000058 | V19: 0.3139350013 | W19: 0.4453264575
F20: Ane | G20: =0.25*PI()*(Dt^2-Dksi^2) -> 4913.45091 | R20: 0.81 | S20: 4.05 | T20: 3.334219495 | U20: 10.83000058 | V20: 0.3078688198 | W20: 0.441051197
F21: Ratio | G21: =G20/G19 -> 1.261290323 | R21: 0.82 | S21: 4.1 | T21: 3.284219495 | U21: 10.88000058 | V21: 0.3018583935 | W21: 0.4367096028
R22: 0.83 | S22: 4.15 | T22: 3.234219495 | U22: 10.93000058 | V22: 0.2959029574 | W22: 0.4323015534
R23: 0.84 | S23: 4.2 | T23: 3.184219495 | U23: 10.98000058 | V23: 0.2900017603 | W23: 0.4278269267
R24: 0.85 | S24: 4.25 | T24: 3.134219495 | U24: 11.03000058 | V24: 0.2841540645 | W24: 0.4232856005
R25: 0.86 | S25: 4.3 | T25: 3.084219495 | U25: 11.08000058 | V25: 0.2783591458 | W25: 0.4186774521
R26: 0.87 | S26: 4.35 | T26: 3.034219495 | U26: 11.13000058 | V26: 0.2726162927 | W26: 0.4140023588
R27: 0.88 | S27: 4.4 | T27: 2.984219495 | U27: 11.18000058 | V27: 0.2669248069 | W27: 0.4092601973
R28: 0.89 | S28: 4.45 | T28: 2.934219495 | U28: 11.23000058 | V28: 0.2612840022 | W28: 0.4044508441
R29: 0.9 | S29: 4.5 | T29: 2.884219495 | U29: 11.28000058 | V29: 0.2556932046 | W29: 0.3995741755
R30: 0.91 | S30: 4.55 | T30: 2.834219495 | U30: 11.33000058 | V30: 0.2501517521 | W30: 0.3946300674
R31: 0.92 | S31: 4.6 | T31: 2.784219495 | U31: 11.38000058 | V31: 0.2446589942 | W31: 0.3896183954
R32: 0.93 | S32: 4.65 | T32: 2.734219495 | U32: 11.43000058 | V32: 0.239214292 | W32: 0.3845390347
R33: 0.94 | S33: 4.7 | T33: 2.684219495 | U33: 11.48000058 | V33: 0.2338170175 | W33: 0.3793918604
R34: 0.95 | S34: 4.75 | T34: 2.634219495 | U34: 11.53000058 | V34: 0.2284665537 | W34: 0.3741767472
R35: 0.96 | S35: 4.8 | T35: 2.584219495 | U35: 11.58000058 | V35: 0.2231622942 | W35: 0.3688935694
R36: 0.97 | S36: 4.85 | T36: 2.534219495 | U36: 11.63000058 | V36: 0.2179036431 | W36: 0.3635422012
R37: 0.98 | S37: 4.9 | T37: 2.484219495 | U37: 11.68000058 | V37: 0.2126900148 | W37: 0.3581225161
R38: 0.99 | S38: 4.95 | T38: 2.434219495 | U38: 11.73000058 | V38: 0.2075208334 | W38: 0.3526343878
R39: 1 | S39: 5 | T39: 2.384219495 | U39: 11.78000058 | V39: 0.202395533 | W39: 0.3470776893
R42: Del av slag | S42: Använt slag | T42: vv nedre volym | U42: vv övre volym | V42: Volymkvot | W42: Formel
R43: 0.7 | S43: =User_Used_Stroke_Length*R43 -> 3.5 | T43: =(($G$13-S43*$G$20)/$G$20)-$U$1 -> 0.8313753183 | U43: =($E$13+S43*$G$19)/$G$19 -> 10.28000058 | V43: =T43/U43 -> 0.0808730809 | W43: =(T43*U43*($G$21^(1/1.4)-1))/(U43+T43*$G$21^(1/1.4)) -> 0.1368727646 | X43: =IF(W43<0,0,W43) -> 0.1368727646
R44: 0.71 | S44: 3.55 | T44: =(($G$13-S44*$G$20)/$G$20)-$U$1 -> 0.7813753183 | U44: =($E$13+S44*$G$19)/$G$19 -> 10.33000058 | V44: =T44/U44 -> 0.07564136251 | W44: 0.1293703367 | X44: =IF(W44<0,0,W44) -> 0.1293703367
R45: 0.72 | S45: 3.6 | T45: 0.7313753183 | U45: 10.38000058 | V45: 0.07046004602 | W45: 0.1217756709 | X45: 0.1217756709
R46: 0.73 | S46: 3.65 | T46: 0.6813753183 | U46: 10.43000058 | V46: 0.06532840658 | W46: 0.1140885452 | X46: 0.1140885452
R47: 0.74 | S47: 3.7 | T47: 0.6313753183 | U47: 10.48000058 | V47: 0.06024573317 | W47: 0.1063087367 | X47: 0.1063087367
R48: 0.75 | S48: 3.75 | T48: 0.5813753183 | U48: 10.53000058 | V48: 0.05521132825 | W48: 0.09843602198 | X48: 0.09843602198
R49: 0.76 | S49: 3.8 | T49: 0.5313753183 | U49: 10.58000058 | V49: 0.0502245075 | W49: 0.09047017666 | X49: 0.09047017666
R50: 0.77 | S50: 3.85 | T50: 0.4813753183 | U50: 10.63000058 | V50: 0.04528459945 | W50: 0.08241097579 | X50: 0.08241097579
R51: 0.78 | S51: 3.9 | T51: 0.4313753183 | U51: 10.68000058 | V51: 0.04039094523 | W51: 0.07425819367 | X51: 0.07425819367
R52: 0.79 | S52: 3.95 | T52: 0.3813753183 | U52: 10.73000058 | V52: 0.03554289821 | W52: 0.06601160385 | X52: 0.06601160385
R53: 0.8 | S53: 4 | T53: 0.3313753183 | U53: 10.78000058 | V53: 0.0307398238 | W53: 0.05767097918 | X53: 0.05767097918
R54: 0.81 | S54: 4.05 | T54: 0.2813753183 | U54: 10.83000058 | V54: 0.0259810991 | W54: 0.04923609173 | X54: 0.04923609173
R55: 0.82 | S55: 4.1 | T55: 0.2313753183 | U55: 10.88000058 | V55: 0.02126611269 | W55: 0.04070671289 | X55: 0.04070671289
R56: 0.83 | S56: 4.15 | T56: 0.1813753183 | U56: 10.93000058 | V56: 0.01659426429 | W56: 0.03208261326 | X56: 0.03208261326
R57: 0.84 | S57: 4.2 | T57: 0.1313753183 | U57: 10.98000058 | V57: 0.01196496461 | W57: 0.02336356273 | X57: 0.02336356273
R58: 0.85 | S58: 4.25 | T58: 0.08137531826 | U58: 11.03000058 | V58: 0.007377634997 | W58: 0.01454933043 | X58: 0.01454933043
R59: 0.86 | S59: 4.3 | T59: 0.03137531826 | U59: 11.08000058 | V59: 0.002831707277 | W59: 0.005639684726 | X59: 0.005639684726
R60: 0.87 | S60: 4.35 | T60: -0.01862468174 | U60: 11.13000058 | V60: -0.00167337653 | W60: -0.003365606734 | X60: 0
R61: 0.88 | S61: 4.4 | T61: -0.06862468174 | U61: 11.18000058 | V61: -0.006138164419 | W61: -0.01246677708 | X61: 0
R62: 0.89 | S62: 4.45 | T62: -0.1186246817 | U62: 11.23000058 | V62: -0.01056319463 | W62: -0.0216640602 | X62: 0
R63: 0.9 | S63: 4.5 | T63: -0.1686246817 | U63: 11.28000058 | V63: -0.01494899584 | W63: -0.03095769073 | X63: 0
R64: 0.91 | S64: 4.55 | T64: -0.2186246817 | U64: 11.33000058 | V64: -0.01929608743 | W64: -0.04034790409 | X64: 0
R65: 0.92 | S65: 4.6 | T65: -0.2686246817 | U65: 11.38000058 | V65: -0.02360497963 | W65: -0.04983493645 | X65: 0
R66: 0.93 | S66: 4.65 | T66: -0.3186246817 | U66: 11.43000058 | V66: -0.02787617373 | W66: -0.05941902476 | X66: 0
R67: 0.94 | S67: 4.7 | T67: -0.3686246817 | U67: 11.48000058 | V67: -0.0321101623 | W67: -0.06910040673 | X67: 0
R68: 0.95 | S68: 4.75 | T68: -0.4186246817 | U68: 11.53000058 | V68: -0.03630742939 | W68: -0.07887932088 | X68: 0
R69: 0.96 | S69: 4.8 | T69: -0.4686246817 | U69: 11.58000058 | V69: -0.04046845064 | W69: -0.08875600646 | X69: 0
R70: 0.97 | S70: 4.85 | T70: -0.5186246817 | U70: 11.63000058 | V70: -0.04459369356 | W70: -0.09873070356 | X70: 0
R71: 0.98 | S71: 4.9 | T71: -0.5686246817 | U71: 11.68000058 | V71: -0.04868361761 | W71: -0.108803653 | X71: 0
R72: 0.99 | S72: 4.95 | T72: -0.6186246817 | U72: 11.73000058 | V72: -0.05273867446 | W72: -0.1189750965 | X72: 0
R73: 1 | S73: 5 | T73: -0.6686246817 | U73: 11.78000058 | V73: -0.05675930807 | W73: -0.1292452763 | X73: 0

Sheet För_Helpdesk (hidden)
B9: Adjusting Stroke Length
B11: Stroke adjustment | D11: =User_Used_Stroke_Length-Stroke -> -5 | E11: mm | G11: Configuration
F12: =Spacer_List -> Spacer (1 mm) | G12: 0
F13: Spacer (2 mm) | G13: 0
F14: Spacer (4 mm) | G14: 1
F15: Spacer (8 mm) | G15: 1
Q29: Press Stroke | S29: 500 | T29: mm
Q30: Rod Length | S30: 400 | T30: mm
Q32: Gas Spring Impact Press Speed | S32: =Press_velocity_at_impact -> 0.03 | T32: m/s
Q33: Max Press Speed | S33: =Max_Press_Speed -> 0.31 | T33: m/s
Q35: KF Spring
Q36: KF Spring locking time | S36: 2 | T36: s

Sheet Blad1 (hidden)
